{"text_format":"1","workbook":"xlsx","n_sheets":23,"sheets":["Form13-1","Form13-2","Form13-2(Memo)","Form13-2(Chart)","Form13-3(TOP)","Form13-3(Print)","雑誌論文_Research Paper","図書_Published Book","総説・解説・展望_Review・Commentary","特許_Patent","受賞_Awards・Prizes","国際会議発表_Presentations1","学会発表_Presentations2","報道_Press Releases","研究費の獲得_Status of Research Funds","学部外共同研究_Collaborative Research1","国際共同研究_Collaborative Research 2","事業化_Commercialized Products","企業からの技術相談_Technical Consult","留学・インターンシップ_Overseas Study","研究指導実績_Direction Researches","その他_Other","英語能力 English Proficiency"],"not_rendered":{"charts":19,"images":2,"macros":1,"external_links":0,"defined_names":23,"comments":2,"pivot_tables":0},"unopened":[],"bounds":{"document_bytes":16777216,"sheet_cells":100000,"rows_first":2000,"rows_last":500,"rows_between":2000,"halvings":0,"cell_chars":16384,"cell_head_chars":4096},"cells_cut":0,"cells_raw":0,"read":"whole","date_system":"1900"}

{"sheet":"Form13-1","index":0,"n_rows":27,"n_cols":10,"rows_kept":27,"cut":false,"hidden":false,"merged":[[26,2,26,4],[26,5,26,7],[27,1,27,7],[12,1,12,7],[20,1,20,7],[23,2,23,4],[23,5,23,7],[24,2,24,4],[24,5,24,7],[25,2,25,4],[25,5,25,7],[18,2,18,4],[18,5,18,7],[21,1,21,4],[21,5,21,7],[22,2,22,4],[22,5,22,7],[15,2,15,4],[15,5,15,7],[16,2,16,4],[16,5,16,7],[17,2,17,4],[17,5,17,7],[9,2,9,7],[10,2,10,7],[13,1,13,4],[13,5,13,7],[14,2,14,4],[14,5,14,7],[8,2,8,7],[0,0,0,8],[1,1,1,2],[1,3,1,4],[1,6,1,7],[2,1,2,7],[3,2,3,7],[4,1,4,7],[5,1,5,7],[6,2,6,7],[7,2,7,7]]}
["学生自己評価シート/Self-evaluation sheet ",null,null,null,null,null,null,null,null,"fm0"]
[null,"氏　名\nName",null,null,null,"学　籍　\n番　号\nStudent no."]
[null,"1. 特別課題研究/Special research assignment"]
[null,1]
[null,"2.　達成目標/Objectives"]
[null,"達成目標とそれを達成するための具体的方法/Specific method for achieving objectives"]
[null,"1年次/1st year"]
[null,"2年次/2nd year"]
[null,"3年次/3rd year"]
[null,"4年次/4th year"]
[null,"5年次/5th year"]
[]
[null,"3.  【中間報告/Interim report】"]
[null,"【中間報告/Interim report】達成目標に対する自己評価/\nSelf-assessment of objectives",null,null,null,"【中間報告/Interim report】\nメンター教員/by mentor"]
[null,"1年次/1st year"]
[null,"2年次/2nd year"]
[null,"3年次/3rd year"]
[null,"4年次/4th year"]
[null,"5年次/5th year"]
[]
[null,"4.  【最終報告/Final report】"]
[null,"【最終報告/Final report】達成目標に対する自己評価/\nSelf-assessment of objectives",null,null,null,"【最終報告/Final report】\n主指導教員/by primary teaching advisor "]
[null,"1年次/1st year"]
[null,"2年次/2nd year"]
[null,"3年次/3rd year"]
[null,"4年次/4th year"]
[null,"5年次/5th year"]

{"sheet":"Form13-2","index":1,"n_rows":143,"n_cols":24,"rows_kept":143,"cut":false,"hidden":false,"merged":[[3,21,53,21],[3,22,53,22],[49,17,53,17],[55,17,59,17],[61,17,65,17],[67,17,71,17],[73,17,77,17],[79,17,83,17],[85,17,89,17],[4,17,8,17],[9,17,13,17],[14,17,18,17],[19,17,23,17],[24,17,28,17],[29,17,33,17],[34,17,38,17],[39,17,43,17],[44,17,48,17],[3,23,53,23],[107,0,136,0],[137,1,142,1],[137,23,142,23],[137,0,142,0],[1,5,1,8],[3,0,53,0],[54,0,71,0],[72,0,89,0],[90,0,106,0],[72,1,77,1],[107,21,136,21],[90,19,106,19],[90,20,106,20],[90,21,106,21],[72,18,89,18],[72,19,89,19],[72,20,89,20],[72,2,77,2],[107,23,136,23],[107,1,112,1],[3,18,53,18],[3,19,53,19],[3,20,53,20],[54,23,71,23],[72,23,89,23],[78,2,83,2],[84,2,89,2],[90,2,95,2],[90,23,106,23],[72,21,89,21],[54,19,71,19],[54,20,71,20],[54,21,71,21],[54,18,71,18],[54,22,71,22],[72,22,89,22],[91,17,95,17],[97,17,101,17],[131,2,136,2],[49,2,53,2],[54,2,59,2],[60,2,65,2],[78,1,83,1],[84,1,89,1],[90,1,95,1],[14,2,18,2],[19,2,23,2],[3,1,53,1],[54,1,59,1],[60,1,65,1],[66,1,71,1],[29,2,33,2],[34,2,38,2],[66,2,71,2],[107,2,112,2],[4,2,8,2],[9,2,13,2],[39,2,43,2],[24,2,28,2],[44,2,48,2],[0,1,0,6],[137,22,142,22],[107,19,136,19],[107,20,136,20],[113,2,118,2],[119,2,124,2],[125,2,130,2],[102,2,106,2],[96,2,101,2],[102,17,106,17],[108,17,112,17],[114,17,118,17],[120,17,124,17],[126,17,130,17],[90,22,106,22],[107,22,136,22],[132,17,136,17],[90,18,106,18],[107,18,136,18],[96,1,106,1],[113,1,118,1],[119,1,124,1],[125,1,130,1],[131,1,136,1]]}
[null,"リーディング学生中間報告書/Advanced Leading Graduate Program Interim Report",null,null,null,null,null,"更新日"]
[null,"学籍番号\nStudent no.",{"$f":"IFERROR('Form13-1'!G2,\"\")","v":0},null,"氏　名\nName",{"$f":"IFERROR('Form13-1'!D2,\"\")","v":0}]
["領　　域\nArea","最終達成目標\nLast objective achieved","評　　価　　項　　目\nEvaluation item",null,"評　価\n年　度\nEvaluation year","達成度１\nLevel of achievement 1","達成度２\nLevel of achievement 2","達成度３\nLevel of achievement 3","達成度４\nLevel of achievement 4","評価値1年","評価値2年","評価値3年","評価値4年","評価値5年","エラー","グラフ用","折れ線用","最高値","平均値1年","平均値2年","平均値3年","平均値4年","平均値5年","最高値"]
["【繊維ファイバー工学分野において、基礎となる知識がある】\nPossesses fundamental knowledge in the textile and fiber engineering field.","学修した内容を的確にまとめ、説明または発表することができる\nIs able to precisely summarize, describe, or present what he has learned.",null,null,null,"講義／実習に積極的に取り組むことができる\nIs able to participate actively in lectures and practical training.","講義／実習の大まかな内容を捉えることができ\nHas a general understanding of the content of lectures and practical training.","講義／実習の内容について、十分な知識を有している\nHas adequate knowledge in the areas addressed in lectures and practical training.","学修した内容を的確にまとめ、説明または発表することができる\nIs able to precisely summarize, describe, or present what he has learned.",null,null,null,null,null,null,null,null,null,{"$f":"IFERROR(IF(AVERAGE(J5:J54)=0,NA(),AVERAGE(J5:J54)), \"\")","v":""},{"$f":"IFERROR(IF(AVERAGE(K5:K54)=0,NA(),AVERAGE(K5:K54)),\"\")","v":""},{"$f":"IFERROR(IF(AVERAGE(L5:L54)=0,NA(),AVERAGE(L5:L54)),\"\")","v":""},{"$f":"IFERROR(IF(AVERAGE(M5:M54)=0,NA(),AVERAGE(M5:M54)),\"\")","v":""},{"$f":"IFERROR(IF(AVERAGE(N5:N54)=0,NA(),AVERAGE(N5:N54)),\"\")","v":""},{"$f":"MAX(S4:W54)","v":0}]
[null,null,"共通分野\nCommon field",{"$f":"C5","v":"共通分野\nCommon field"},"1年次/1st year",null,null,null,null,{"$f":"IF(MAX(F5:I5)=0,\"\", MAX(F5:I5))","v":""},null,null,null,null,{"$f":"COUNTA(F5:I5)","v":0},{"$f":"J5","v":""},{"$f":"IF(J5=\"\", NA(), J5)","v":{"$error":"#N/A"}},{"$f":"IF(MAX(J5:N9)=0, \"\", MAX(J5:N9))","v":""}]
[null,null,null,{"$f":"C5","v":"共通分野\nCommon field"},"2年次/2nd year",null,null,null,null,null,{"$f":"IF(MAX(F6:I6)=0,\"\",MAX(F6:I6))","v":""},null,null,null,0,{"$f":"K6","v":""},{"$f":"IF(K6=\"\", NA(), K6)","v":{"$error":"#N/A"}}]
[null,null,null,{"$f":"C5","v":"共通分野\nCommon field"},"3年次/3rd year",null,null,null,null,null,null,{"$f":"IF(MAX(F7:I7)=0,\"\",MAX(F7:I7))","v":""},null,null,0,{"$f":"L7","v":""},{"$f":"IF(L7=\"\", NA(), L7)","v":{"$error":"#N/A"}}]
[null,null,null,{"$f":"C5","v":"共通分野\nCommon field"},"4年次/4th year",null,null,null,null,null,null,null,{"$f":"IF(MAX(F8:I8)=0,\"\",MAX(F8:I8))","v":""},null,0,{"$f":"M8","v":""},{"$f":"IF(M8=\"\", NA(), M8)","v":{"$error":"#N/A"}}]
[null,null,null,{"$f":"C5","v":"共通分野\nCommon field"},"5年次/5th year",null,null,null,null,null,null,null,null,{"$f":"IF(MAX(F9:I9)=0,\"\",MAX(F9:I9))","v":""},0,{"$f":"N9","v":""},{"$f":"IF(N9=\"\", NA(), N9)","v":{"$error":"#N/A"}}]
[null,null,"フロンティアファイバー\nFrontier Fiber field",{"$f":"C10","v":"フロンティアファイバー\nFrontier Fiber field"},"1年次/1st year",null,null,null,null,{"$f":"IF(MAX(F10:I10)=0, \"\", MAX(F10:I10))","v":""},null,null,null,null,0,{"$f":"IF(J10=\"\", NA(), J10)","v":{"$error":"#N/A"}},null,{"$f":"IF(MAX(J10:N14)=0, NA(), MAX(J10:N14))","v":{"$error":"#N/A"}}]
[null,null,null,{"$f":"C10","v":"フロンティアファイバー\nFrontier Fiber field"},"2年次/2nd year",null,null,null,null,null,{"$f":"IF(MAX(F11:I11)=0,\"\",MAX(F11:I11))","v":""},null,null,null,0,{"$f":"IF(K11=\"\", NA(), K11)","v":{"$error":"#N/A"}}]
[null,null,null,{"$f":"C10","v":"フロンティアファイバー\nFrontier Fiber field"},"3年次/3rd year",null,null,null,null,null,null,{"$f":"IF(MAX(F12:I12)=0,\"\",MAX(F12:I12))","v":""},null,null,0,{"$f":"IF(L12=\"\", NA(), L12)","v":{"$error":"#N/A"}}]
[null,null,null,{"$f":"C10","v":"フロンティアファイバー\nFrontier Fiber field"},"4年次/4th year",null,null,null,null,null,null,null,{"$f":"IF(MAX(F13:I13)=0,\"\",MAX(F13:I13))","v":""},null,0,{"$f":"IF(M13=\"\", NA(), M13)","v":{"$error":"#N/A"}}]
[null,null,null,{"$f":"C10","v":"フロンティアファイバー\nFrontier Fiber field"},"5年次/5th year",null,null,null,null,null,null,null,null,{"$f":"IF(MAX(F14:I14)=0,\"\",MAX(F14:I14))","v":""},0,{"$f":"IF(N14=\"\", NA(), N14)","v":{"$error":"#N/A"}}]
[null,null,"バイオ・メディカルファイバー\nBiomedical Fiber field",{"$f":"C15","v":"バイオ・メディカルファイバー\nBiomedical Fiber field"},"1年次/1st year",null,null,null,null,{"$f":"IF(MAX(F15:I15)=0, \"\", MAX(F15:I15))","v":""},null,null,null,null,0,{"$f":"IF(J15=\"\", NA(), J15)","v":{"$error":"#N/A"}},null,{"$f":"IF(MAX(J15:N19)=0, NA(), MAX(J15:N19))","v":{"$error":"#N/A"}}]
[null,null,null,{"$f":"C15","v":"バイオ・メディカルファイバー\nBiomedical Fiber field"},"2年次/2nd year",null,null,null,null,null,{"$f":"IF(MAX(F16:I16)=0,\"\",MAX(F16:I16))","v":""},null,null,null,0,{"$f":"IF(K16=\"\", NA(), K16)","v":{"$error":"#N/A"}}]
[null,null,null,{"$f":"C15","v":"バイオ・メディカルファイバー\nBiomedical Fiber field"},"3年次/3rd year",null,null,null,null,null,null,{"$f":"IF(MAX(F17:I17)=0,\"\",MAX(F17:I17))","v":""},null,null,0,{"$f":"IF(L17=\"\", NA(), L17)","v":{"$error":"#N/A"}}]
[null,null,null,{"$f":"C15","v":"バイオ・メディカルファイバー\nBiomedical Fiber field"},"4年次/4th year",null,null,null,null,null,null,null,{"$f":"IF(MAX(F18:I18)=0,\"\",MAX(F18:I18))","v":""},null,0,{"$f":"IF(M18=\"\", NA(), M18)","v":{"$error":"#N/A"}}]
[null,null,null,{"$f":"C15","v":"バイオ・メディカルファイバー\nBiomedical Fiber field"},"5年次/5th year",null,null,null,null,null,null,null,null,{"$f":"IF(MAX(F19:I19)=0,\"\",MAX(F19:I19))","v":""},0,{"$f":"IF(N19=\"\", NA(), N19)","v":{"$error":"#N/A"}}]
[null,null,"スマートテキスタイル\nSmart Textiles field",{"$f":"C20","v":"スマートテキスタイル\nSmart Textiles field"},"1年次/1st year",null,null,null,null,{"$f":"IF(MAX(F20:I20)=0, \"\", MAX(F20:I20))","v":""},null,null,null,null,0,{"$f":"IF(J20=\"\", NA(), J20)","v":{"$error":"#N/A"}},null,{"$f":"IF(MAX(J20:N24)=0, NA(), MAX(J20:N24))","v":{"$error":"#N/A"}}]
[null,null,null,{"$f":"C20","v":"スマートテキスタイル\nSmart Textiles field"},"2年次/2nd year",null,null,null,null,null,{"$f":"IF(MAX(F21:I21)=0,\"\",MAX(F21:I21))","v":""},null,null,null,0,{"$f":"IF(K21=\"\", NA(), K21)","v":{"$error":"#N/A"}}]
[null,null,null,{"$f":"C20","v":"スマートテキスタイル\nSmart Textiles field"},"3年次/3rd year",null,null,null,null,null,null,{"$f":"IF(MAX(F22:I22)=0,\"\",MAX(F22:I22))","v":""},null,null,0,{"$f":"IF(L22=\"\", NA(), L22)","v":{"$error":"#N/A"}}]
[null,null,null,{"$f":"C20","v":"スマートテキスタイル\nSmart Textiles field"},"4年次/4th year",null,null,null,null,null,null,null,{"$f":"IF(MAX(F23:I23)=0,\"\",MAX(F23:I23))","v":""},null,0,{"$f":"IF(M23=\"\", NA(), M23)","v":{"$error":"#N/A"}}]
[null,null,null,{"$f":"C20","v":"スマートテキスタイル\nSmart Textiles field"},"5年次/5th year",null,null,null,null,null,null,null,null,{"$f":"IF(MAX(F24:I24)=0,\"\",MAX(F24:I24))","v":""},0,{"$f":"IF(N24=\"\", NA(), N24)","v":{"$error":"#N/A"}}]
[null,null,"感性・ファッション工学\nKansei and Fashion Engineering field",{"$f":"C25","v":"感性・ファッション工学\nKansei and Fashion Engineering field"},"1年次/1st year",null,null,null,null,{"$f":"IF(MAX(F25:I25)=0, \"\", MAX(F25:I25))","v":""},null,null,null,null,0,{"$f":"IF(J25=\"\", NA(), J25)","v":{"$error":"#N/A"}},null,{"$f":"IF(MAX(J25:N29)=0, NA(), MAX(J25:N29))","v":{"$error":"#N/A"}}]
[null,null,null,{"$f":"C25","v":"感性・ファッション工学\nKansei and Fashion Engineering field"},"2年次/2nd year",null,null,null,null,null,{"$f":"IF(MAX(F26:I26)=0,\"\",MAX(F26:I26))","v":""},null,null,null,0,{"$f":"IF(K26=\"\", NA(), K26)","v":{"$error":"#N/A"}}]
[null,null,null,{"$f":"C25","v":"感性・ファッション工学\nKansei and Fashion Engineering field"},"3年次/3rd year",null,null,null,null,null,null,{"$f":"IF(MAX(F27:I27)=0,\"\",MAX(F27:I27))","v":""},null,null,0,{"$f":"IF(L27=\"\", NA(), L27)","v":{"$error":"#N/A"}}]
[null,null,null,{"$f":"C25","v":"感性・ファッション工学\nKansei and Fashion Engineering field"},"4年次/4th year",null,null,null,null,null,null,null,{"$f":"IF(MAX(F28:I28)=0,\"\",MAX(F28:I28))","v":""},null,0,{"$f":"IF(M28=\"\", NA(), M28)","v":{"$error":"#N/A"}}]
[null,null,null,{"$f":"C25","v":"感性・ファッション工学\nKansei and Fashion Engineering field"},"5年次/5th year",null,null,null,null,null,null,null,null,{"$f":"IF(MAX(F29:I29)=0,\"\",MAX(F29:I29))","v":""},0,{"$f":"IF(N29=\"\", NA(), N29)","v":{"$error":"#N/A"}}]
[null,null,"e-learning\nTextile Fundamentals,Textile Testing",{"$f":"C30","v":"e-learning\nTextile Fundamentals,Textile Testing"},"1年次/1st year",null,null,null,null,{"$f":"IF(MAX(F30:I30)=0, \"\", MAX(F30:I30))","v":""},null,null,null,null,0,{"$f":"IF(J30=\"\", NA(), J30)","v":{"$error":"#N/A"}},null,{"$f":"IF(MAX(J30:N34)=0, NA(), MAX(J30:N34))","v":{"$error":"#N/A"}}]
[null,null,null,{"$f":"C30","v":"e-learning\nTextile Fundamentals,Textile Testing"},"2年次/2nd year",null,null,null,null,null,{"$f":"IF(MAX(F31:I31)=0,\"\",MAX(F31:I31))","v":""},null,null,null,0,{"$f":"IF(K31=\"\", NA(), K31)","v":{"$error":"#N/A"}}]
[null,null,null,{"$f":"C30","v":"e-learning\nTextile Fundamentals,Textile Testing"},"3年次/3rd year",null,null,null,null,null,null,{"$f":"IF(MAX(F32:I32)=0,\"\",MAX(F32:I32))","v":""},null,null,0,{"$f":"IF(L32=\"\", NA(), L32)","v":{"$error":"#N/A"}}]
[null,null,null,{"$f":"C30","v":"e-learning\nTextile Fundamentals,Textile Testing"},"4年次/4th year",null,null,null,null,null,null,null,{"$f":"IF(MAX(F33:I33)=0,\"\",MAX(F33:I33))","v":""},null,0,{"$f":"IF(M33=\"\", NA(), M33)","v":{"$error":"#N/A"}}]
[null,null,null,{"$f":"C30","v":"e-learning\nTextile Fundamentals,Textile Testing"},"5年次/5th year",null,null,null,null,null,null,null,null,{"$f":"IF(MAX(F34:I34)=0,\"\",MAX(F34:I34))","v":""},0,{"$f":"IF(N34=\"\", NA(), N34)","v":{"$error":"#N/A"}}]
[null,null,"「International Topics on Fiber Engineering」の講義",{"$f":"C35","v":"「International Topics on Fiber Engineering」の講義"},"1年次/1st year",null,null,null,null,{"$f":"IF(MAX(F35:I35)=0, \"\", MAX(F35:I35))","v":""},null,null,null,null,0,{"$f":"IF(J35=\"\", NA(), J35)","v":{"$error":"#N/A"}},null,{"$f":"IF(MAX(J35:N39)=0, NA(), MAX(J35:N39))","v":{"$error":"#N/A"}}]
[null,null,null,{"$f":"C35","v":"「International Topics on Fiber Engineering」の講義"},"2年次/2nd year",null,null,null,null,null,{"$f":"IF(MAX(F36:I36)=0,\"\",MAX(F36:I36))","v":""},null,null,null,0,{"$f":"IF(K36=\"\", NA(), K36)","v":{"$error":"#N/A"}}]
[null,null,null,{"$f":"C35","v":"「International Topics on Fiber Engineering」の講義"},"3年次/3rd year",null,null,null,null,null,null,{"$f":"IF(MAX(F37:I37)=0,\"\",MAX(F37:I37))","v":""},null,null,{"$f":"COUNTA(F37:I37)","v":0},{"$f":"IF(L37=\"\", NA(), L37)","v":{"$error":"#N/A"}}]
[null,null,null,{"$f":"C35","v":"「International Topics on Fiber Engineering」の講義"},"4年次/4th year",null,null,null,null,null,null,null,{"$f":"IF(MAX(F38:I38)=0,\"\",MAX(F38:I38))","v":""},null,0,{"$f":"IF(M38=\"\", NA(), M38)","v":{"$error":"#N/A"}}]
[null,null,null,{"$f":"C35","v":"「International Topics on Fiber Engineering」の講義"},"5年次/5th year",null,null,null,null,null,null,null,null,{"$f":"IF(MAX(F39:I39)=0,\"\",MAX(F39:I39))","v":""},0,{"$f":"IF(N39=\"\", NA(), N39)","v":{"$error":"#N/A"}}]
[null,null,"Fii施設のミニプラントを利用した実習\nPractical training using the mini-plant at Fii on campus",{"$f":"C40","v":"Fii施設のミニプラントを利用した実習\nPractical training using the mini-plant at Fii on campus"},"1年次/1st year",null,null,null,null,{"$f":"IF(MAX(F40:I40)=0, \"\", MAX(F40:I40))","v":""},null,null,null,null,0,{"$f":"IF(J40=\"\", NA(), J40)","v":{"$error":"#N/A"}},null,{"$f":"IF(MAX(J40:N44)=0, NA(), MAX(J40:N44))","v":{"$error":"#N/A"}}]
[null,null,null,{"$f":"C40","v":"Fii施設のミニプラントを利用した実習\nPractical training using the mini-plant at Fii on campus"},"2年次/2nd year",null,null,null,null,null,{"$f":"IF(MAX(F41:I41)=0,\"\",MAX(F41:I41))","v":""},null,null,null,0,{"$f":"IF(K41=\"\", NA(), K41)","v":{"$error":"#N/A"}}]
[null,null,null,{"$f":"C40","v":"Fii施設のミニプラントを利用した実習\nPractical training using the mini-plant at Fii on campus"},"3年次/3rd year",null,null,null,null,null,null,{"$f":"IF(MAX(F42:I42)=0,\"\",MAX(F42:I42))","v":""},null,null,0,{"$f":"IF(L42=\"\", NA(), L42)","v":{"$error":"#N/A"}}]
[null,null,null,{"$f":"C40","v":"Fii施設のミニプラントを利用した実習\nPractical training using the mini-plant at Fii on campus"},"4年次/4th year",null,null,null,null,null,null,null,{"$f":"IF(MAX(F43:I43)=0,\"\",MAX(F43:I43))","v":""},null,0,{"$f":"IF(M43=\"\", NA(), M43)","v":{"$error":"#N/A"}}]
[null,null,null,{"$f":"C40","v":"Fii施設のミニプラントを利用した実習\nPractical training using the mini-plant at Fii on campus"},"5年次/5th year",null,null,null,null,null,null,null,null,{"$f":"IF(MAX(F44:I44)=0,\"\",MAX(F44:I44))","v":""},0,{"$f":"IF(N44=\"\", NA(), N44)","v":{"$error":"#N/A"}}]
[null,null,"ものづくり教育\nManufacturing education",{"$f":"C45","v":"ものづくり教育\nManufacturing education"},"1年次/1st year",null,null,null,null,{"$f":"IF(MAX(F45:I45)=0, \"\", MAX(F45:I45))","v":""},null,null,null,null,0,{"$f":"IF(J45=\"\", NA(), J45)","v":{"$error":"#N/A"}},null,{"$f":"IF(MAX(J45:N49)=0, NA(), MAX(J45:N49))","v":{"$error":"#N/A"}}]
[null,null,null,{"$f":"C45","v":"ものづくり教育\nManufacturing education"},"2年次/2nd year",null,null,null,null,null,{"$f":"IF(MAX(F46:I46)=0,\"\",MAX(F46:I46))","v":""},null,null,null,0,{"$f":"IF(K46=\"\", NA(), K46)","v":{"$error":"#N/A"}}]
[null,null,null,{"$f":"C45","v":"ものづくり教育\nManufacturing education"},"3年次/3rd year",null,null,null,null,null,null,{"$f":"IF(MAX(F47:I47)=0,\"\",MAX(F47:I47))","v":""},null,null,0,{"$f":"IF(L47=\"\", NA(), L47)","v":{"$error":"#N/A"}}]
[null,null,null,{"$f":"C45","v":"ものづくり教育\nManufacturing education"},"4年次/4th year",null,null,null,null,null,null,null,{"$f":"IF(MAX(F48:I48)=0,\"\",MAX(F48:I48))","v":""},null,0,{"$f":"IF(M48=\"\", NA(), M48)","v":{"$error":"#N/A"}}]
[null,null,null,{"$f":"C45","v":"ものづくり教育\nManufacturing education"},"5年次/5th year",null,null,null,null,null,null,null,null,{"$f":"IF(MAX(F49:I49)=0,\"\",MAX(F49:I49))","v":""},0,{"$f":"IF(N49=\"\", NA(), N49)","v":{"$error":"#N/A"}}]
[null,null,"上記以外の必修科目\nRequired subjects other than the above",{"$f":"C50","v":"上記以外の必修科目\nRequired subjects other than the above"},"1年次/1st year",null,null,null,null,{"$f":"IF(MAX(F50:I50)=0, \"\", MAX(F50:I50))","v":""},null,null,null,null,0,{"$f":"IF(J50=\"\", NA(), J50)","v":{"$error":"#N/A"}},null,{"$f":"IF(AND(R5<>\"\", ISERROR(R10), ISERROR(R20), ISERROR(R25), ISERROR(R30), ISERROR(R35), ISERROR(R40), ISERROR(R45),MAX(J50:N54)=0), \"\", IF(MAX(J50:N54)=0, NA(), MAX(J50:N54)))","v":{"$error":"#N/A"}}]
[null,null,null,{"$f":"C50","v":"上記以外の必修科目\nRequired subjects other than the above"},"2年次/2nd year",null,null,null,null,null,{"$f":"IF(MAX(F51:I51)=0,\"\",MAX(F51:I51))","v":""},null,null,null,0,{"$f":"IF(K51=\"\", NA(), K51)","v":{"$error":"#N/A"}}]
[null,null,null,{"$f":"C50","v":"上記以外の必修科目\nRequired subjects other than the above"},"3年次/3rd year",null,null,null,null,null,null,{"$f":"IF(MAX(F52:I52)=0,\"\",MAX(F52:I52))","v":""},null,null,0,{"$f":"IF(L52=\"\", NA(), L52)","v":{"$error":"#N/A"}}]
[null,null,null,{"$f":"C50","v":"上記以外の必修科目\nRequired subjects other than the above"},"4年次/4th year",null,null,null,null,null,null,null,{"$f":"IF(MAX(F53:I53)=0,\"\",MAX(F53:I53))","v":""},null,0,{"$f":"IF(M53=\"\", NA(), M53)","v":{"$error":"#N/A"}}]
[null,null,null,{"$f":"C50","v":"上記以外の必修科目\nRequired subjects other than the above"},"5年次/5th year",null,null,null,null,null,null,null,null,{"$f":"IF(MAX(F54:I54)=0,\"\",MAX(F54:I54))","v":""},0,{"$f":"IF(N54=\"\", NA(), N54)","v":{"$error":"#N/A"}}]
["【広い科学技術的視野と国際的視野を有している】\nPossesses a broad scientific and international outlook.","現在の国際情勢の中で、問題点を提起・説明できる\nIs able to identify and explain problem areas in the current international situation.","国際的視野_International outlook",{"$f":"C55","v":"国際的視野_International outlook"},null,"新聞・インターネット等で世界情勢について情報に興味を有している\nHas an interest in information about current events as found in sources such as newspapers and the Internet.","現在の国際情勢について、情報収集ができ、現状を理解している\nIs able to gather information about, and has a good understanding of, the current international situation.","現在の国際情勢を説明することができる\nIs able to explain the current international situation.","現在の国際情勢の中で、問題点を提起・説明できる\nIs able to identify and explain problem areas in the current international situation.",null,null,null,null,null,null,null,null,null,{"$f":"IFERROR(IF(AVERAGE(J55:J72)=0,NA(),AVERAGE(J55:J72)),\"\")","v":""},{"$f":"IFERROR(IF(AVERAGE(K55:K72)=0,NA(),AVERAGE(K55:K72)),\"\")","v":""},{"$f":"IFERROR(IF(AVERAGE(L55:L72)=0,NA(),AVERAGE(L55:L72)),\"\")","v":""},{"$f":"IFERROR(IF(AVERAGE(M55:M72)=0,NA(),AVERAGE(M55:M72)),\"\")","v":""},{"$f":"IFERROR(IF(AVERAGE(N55:N72)=0,NA(),AVERAGE(N55:N72)),\"\")","v":""},{"$f":"MAX(S55:W72)","v":0}]
[null,null,null,{"$f":"C55","v":"国際的視野_International outlook"},"1年次/1st year",null,null,null,null,{"$f":"IF(MAX(F56:I56)=0,\"\",MAX(F56:I56))","v":""},null,null,null,null,{"$f":"COUNTA(F56:I56)","v":0},{"$f":"J56","v":""},{"$f":"IF(J56=\"\", NA(), J56)","v":{"$error":"#N/A"}},{"$f":"IF(MAX(J56:N60)=0,\"\",MAX(J56:N60))","v":""}]
[null,null,null,{"$f":"C55","v":"国際的視野_International outlook"},"2年次/2nd year",null,null,null,null,null,{"$f":"IF(MAX(F57:I57)=0,\"\",MAX(F57:I57))","v":""},null,null,null,{"$f":"COUNTA(F57:I57)","v":0},{"$f":"K57","v":""},{"$f":"IF(K57=\"\", NA(), K57)","v":{"$error":"#N/A"}}]
[null,null,null,{"$f":"C55","v":"国際的視野_International outlook"},"3年次/3rd year",null,null,null,null,null,null,{"$f":"IF(MAX(F58:I58)=0,\"\",MAX(F58:I58))","v":""},null,null,{"$f":"COUNTA(F58:I58)","v":0},{"$f":"L58","v":""},{"$f":"IF(L58=\"\", NA(), L58)","v":{"$error":"#N/A"}}]
[null,null,null,{"$f":"C55","v":"国際的視野_International outlook"},"4年次/4th year",null,null,null,null,null,null,null,{"$f":"IF(MAX(F59:I59)=0,\"\",MAX(F59:I59))","v":""},null,{"$f":"COUNTA(F59:I59)","v":0},{"$f":"M59","v":""},{"$f":"IF(M59=\"\", NA(), M59)","v":{"$error":"#N/A"}}]
[null,null,null,{"$f":"C55","v":"国際的視野_International outlook"},"5年次/5th year",null,null,null,null,null,null,null,null,{"$f":"IF(MAX(F60:I60)=0,\"\",MAX(F60:I60))","v":""},{"$f":"COUNTA(F60:I60)","v":0},{"$f":"N60","v":""},{"$f":"IF(N60=\"\", NA(), N60)","v":{"$error":"#N/A"}}]
[null,"自身の研究課題について、広い科学技術的視野から、分析し、自己評価することができる\nIs able to analyze and assess his own research topic from a broad scientific perspective.","広い科学技術的視野_Broad scientific perspective",{"$f":"C61","v":"広い科学技術的視野_Broad scientific perspective"},null,"国際的な研究動向について、情報収集ができる\nIs able to gather information about international research trends.","国際的な研究動向について、理解している\nHas a good understanding of international research trends.","国際的な研究動向について、説明ができる\nIs able to describe international research trends.","自身の研究課題について、広い科学技術的視野から、分析し、自己評価することができる\nIs able to analyze and assess his own research topic from a broad scientific perspective."]
[null,null,null,{"$f":"C61","v":"広い科学技術的視野_Broad scientific perspective"},"1年次/1st year",null,null,null,null,{"$f":"IF(MAX(F62:I62)=0,\"\",MAX(F62:I62))","v":""},null,null,null,null,{"$f":"COUNTA(F62:I62)","v":0},{"$f":"IF(J62=\"\", NA(), J62)","v":{"$error":"#N/A"}},null,{"$f":"IF(MAX(J62:N66)=0,NA(),MAX(J62:N66))","v":{"$error":"#N/A"}}]
[null,null,null,{"$f":"C61","v":"広い科学技術的視野_Broad scientific perspective"},"2年次/2nd year",null,null,null,null,null,{"$f":"IF(MAX(F63:I63)=0,\"\",MAX(F63:I63))","v":""},null,null,null,{"$f":"COUNTA(F63:I63)","v":0},{"$f":"IF(K63=\"\", NA(), K63)","v":{"$error":"#N/A"}}]
[null,null,null,{"$f":"C61","v":"広い科学技術的視野_Broad scientific perspective"},"3年次/3rd year",null,null,null,null,null,null,{"$f":"IF(MAX(F64:I64)=0,\"\",MAX(F64:I64))","v":""},null,null,{"$f":"COUNTA(F64:I64)","v":0},{"$f":"IF(L64=\"\", NA(), L64)","v":{"$error":"#N/A"}}]
[null,null,null,{"$f":"C61","v":"広い科学技術的視野_Broad scientific perspective"},"4年次/4th year",null,null,null,null,null,null,null,{"$f":"IF(MAX(F65:I65)=0,\"\",MAX(F65:I65))","v":""},null,{"$f":"COUNTA(F65:I65)","v":0},{"$f":"IF(M65=\"\", NA(), M65)","v":{"$error":"#N/A"}}]
[null,null,null,{"$f":"C61","v":"広い科学技術的視野_Broad scientific perspective"},"5年次/5th year",null,null,null,null,null,null,null,null,{"$f":"IF(MAX(F66:I66)=0,\"\",MAX(F66:I66))","v":""},{"$f":"COUNTA(F66:I66)","v":0},{"$f":"IF(N66=\"\", NA(), N66)","v":{"$error":"#N/A"}}]
[null,"自身の研究課題を国際的社会的な課題と捉え、問題解決として提案・発表することができる\nUnderstands his own research topic in the context of issues in international society and is able to propose and present it as a way to resolve associated problems.","自身の研究から人類社会の諸課題への発展\nApplication of own research to the problems of human society",{"$f":"C67","v":"自身の研究から人類社会の諸課題への発展\nApplication of own research to the problems of human society"},null,"自身の研究課題と社会との関わりについて、考察することができる\nIs able to think about his own research topic and its relationship with society.","自身の研究課題を社会的な視点からどのように役立てたいか、明確な期待を有している\nHas clear expectations concerning the role his own research topic will play from the perspective of society.","自身の研究課題を国際的社会的な視点からどのように役立つのか、具体的に説明できる\nIs able to describe the role his own research topic will play from the perspective of international society in a concrete manner.","自身の研究課題を国際的社会的な課題と捉え、問題解決として提案・発表することができる\nUnderstands his own research topic in the context of issues in international society and is able to propose and present it as a way to resolve associated problems."]
[null,null,null,{"$f":"C67","v":"自身の研究から人類社会の諸課題への発展\nApplication of own research to the problems of human society"},"1年次/1st year",null,null,null,null,{"$f":"IF(MAX(F68:I68)=0,\"\",MAX(F68:I68))","v":""},null,null,null,null,{"$f":"COUNTA(F68:I68)","v":0},{"$f":"IF(J68=\"\", NA(), J68)","v":{"$error":"#N/A"}},null,{"$f":"IF(MAX(J68:N72)=0,NA(),MAX(J68:N72))","v":{"$error":"#N/A"}}]
[null,null,null,{"$f":"C67","v":"自身の研究から人類社会の諸課題への発展\nApplication of own research to the problems of human society"},"2年次/2nd year",null,null,null,null,null,{"$f":"IF(MAX(F69:I69)=0,\"\",MAX(F69:I69))","v":""},null,null,null,{"$f":"COUNTA(F69:I69)","v":0},{"$f":"IF(K69=\"\", NA(), K69)","v":{"$error":"#N/A"}}]
[null,null,null,{"$f":"C67","v":"自身の研究から人類社会の諸課題への発展\nApplication of own research to the problems of human society"},"3年次/3rd year",null,null,null,null,null,null,{"$f":"IF(MAX(F70:I70)=0,\"\",MAX(F70:I70))","v":""},null,null,{"$f":"COUNTA(F70:I70)","v":0},{"$f":"IF(L70=\"\", NA(), L70)","v":{"$error":"#N/A"}}]
[null,null,null,{"$f":"C67","v":"自身の研究から人類社会の諸課題への発展\nApplication of own research to the problems of human society"},"4年次/4th year",null,null,null,null,null,null,null,{"$f":"IF(MAX(F71:I71)=0,\"\",MAX(F71:I71))","v":""},null,{"$f":"COUNTA(F71:I71)","v":0},{"$f":"IF(M71=\"\", NA(), M71)","v":{"$error":"#N/A"}}]
[null,null,null,{"$f":"C67","v":"自身の研究から人類社会の諸課題への発展\nApplication of own research to the problems of human society"},"5年次/5th year",null,null,null,null,null,null,null,null,{"$f":"IF(MAX(F72:I72)=0,\"\",MAX(F72:I72))","v":""},{"$f":"COUNTA(F72:I72)","v":0},{"$f":"IF(N72=\"\", NA(), N72)","v":{"$error":"#N/A"}}]
["【異分野、異業種のグローバルな橋渡しにより新しい価値を創出できる能力を有している】\nPossesses the skills needed to create new value by serving as a global bridge to other fields and industries.","副研究室で積極的に活動に参加し、特別課題研究に役立つ発想・技術力を有している\nParticipates actively in activities of his  lab and has ideas and skills that are useful in special research assignments.","研究室ローテーション\nLab rotation",{"$f":"C73","v":"研究室ローテーション\nLab rotation"},null,"明確な目標を有して副研究室で学修できる\nHas clear goals and is able to learn in his Secondary lab.","副研究室で、研究室の活動に参加できる\nIs able to participate in lab activities in his Secondary lab.","副研究室で、研究室の副指導教員・他の学生らと協力して活動できる\nIs able to cooperate with the assistant advisor and other students in his Secondary lab.","副研究室で積極的に活動に参加し、特別課題研究に役立つ発想・技術力を有している\nParticipates actively in activities of his Secondary lab and has ideas and skills that are useful in special research assignments.",null,null,null,null,null,null,null,null,null,{"$f":"IFERROR(AVERAGE(J73:J90),\"\")","v":""},{"$f":"IFERROR(AVERAGE(K73:K90),\"\")","v":""},{"$f":"IFERROR(AVERAGE(L73:L90),\"\")","v":""},{"$f":"IFERROR(AVERAGE(M73:M90),\"\")","v":""},{"$f":"IFERROR(AVERAGE(N73:N90),\"\")","v":""},{"$f":"MAX(S73:W90)","v":0}]
[null,null,null,{"$f":"C73","v":"研究室ローテーション\nLab rotation"},"1年次/1st year",null,null,null,null,{"$f":"IF(MAX(F74:I74)=0,\"\",MAX(F74:I74))","v":""},null,null,null,null,{"$f":"COUNTA(F74:I74)","v":0},{"$f":"IF(J74=\"\", NA(), J74)","v":{"$error":"#N/A"}},null,{"$f":"IF(MAX(J74:N78)=0,NA(),MAX(J74:N78))","v":{"$error":"#N/A"}}]
[null,null,null,{"$f":"C73","v":"研究室ローテーション\nLab rotation"},"2年次/2nd year",null,null,null,null,null,{"$f":"IF(MAX(F75:I75)=0,\"\",MAX(F75:I75))","v":""},null,null,null,{"$f":"COUNTA(F75:I75)","v":0},{"$f":"IF(K75=\"\", NA(), K75)","v":{"$error":"#N/A"}}]
[null,null,null,{"$f":"C73","v":"研究室ローテーション\nLab rotation"},"3年次/3rd year",null,null,null,null,null,null,{"$f":"IF(MAX(F76:I76)=0,\"\",MAX(F76:I76))","v":""},null,null,{"$f":"COUNTA(F76:I76)","v":0},{"$f":"IF(L76=\"\", NA(), L76)","v":{"$error":"#N/A"}}]
[null,null,null,{"$f":"C73","v":"研究室ローテーション\nLab rotation"},"4年次/4th year",null,null,null,null,null,null,null,{"$f":"IF(MAX(F77:I77)=0,\"\",MAX(F77:I77))","v":""},null,{"$f":"COUNTA(F77:I77)","v":0},{"$f":"IF(M77=\"\", NA(), M77)","v":{"$error":"#N/A"}}]
[null,null,null,{"$f":"C73","v":"研究室ローテーション\nLab rotation"},"5年次/5th year",null,null,null,null,null,null,null,null,{"$f":"IF(MAX(F78:I78)=0,\"\",MAX(F78:I78))","v":""},{"$f":"COUNTA(F78:I78)","v":0},{"$f":"IF(N78=\"\", NA(), N78)","v":{"$error":"#N/A"}}]
[null,"組織の中で、問題解決に取り組み、個人および組織的な成果を示すことができる\nWorks to solve problems within the organization and is able to express individual and organizational results.","企業インターンシップ\nCorporate internship (including overseas)",{"$f":"C79","v":"企業インターンシップ\nCorporate internship (including overseas)"},null,"明確な目標を有して学修・就労できる\nIs able to learn and work with clear goals.","インターンシップの活動に自発的に参加できる\nIs able to participate of his own accord in internship activities.","組織に協力的に活動し、組織の中で、良好なコミュニケーションがとれる\nCooperates with the organization and communicates well inside it.","組織の中で、問題解決に取り組み、個人および組織的な成果を示すことができる\nWorks to solve problems within the organization and is able to express individual and organizational results."]
[null,null,null,{"$f":"C79","v":"企業インターンシップ\nCorporate internship (including overseas)"},"1年次/1st year",null,null,null,null,{"$f":"IF(MAX(F80:I80)=0,\"\",MAX(F80:I80))","v":""},null,null,null,null,{"$f":"COUNTA(F80:I80)","v":0},{"$f":"IF(J80=\"\", NA(), J80)","v":{"$error":"#N/A"}},null,{"$f":"IF(MAX(J80:N84)=0,NA(),MAX(J80:N84))","v":{"$error":"#N/A"}}]
[null,null,null,{"$f":"C79","v":"企業インターンシップ\nCorporate internship (including overseas)"},"2年次/2nd year",null,null,null,null,null,{"$f":"IF(MAX(F81:I81)=0,\"\",MAX(F81:I81))","v":""},null,null,null,{"$f":"COUNTA(F81:I81)","v":0},{"$f":"IF(K81=\"\", NA(), K81)","v":{"$error":"#N/A"}}]
[null,null,null,{"$f":"C79","v":"企業インターンシップ\nCorporate internship (including overseas)"},"3年次/3rd year",null,null,null,null,null,null,{"$f":"IF(MAX(F82:I82)=0,\"\",MAX(F82:I82))","v":""},null,null,{"$f":"COUNTA(F82:I82)","v":0},{"$f":"IF(L82=\"\", NA(), L82)","v":{"$error":"#N/A"}}]
[null,null,null,{"$f":"C79","v":"企業インターンシップ\nCorporate internship (including overseas)"},"4年次/4th year",null,null,null,null,null,null,null,{"$f":"IF(MAX(F83:I83)=0,\"\",MAX(F83:I83))","v":""},null,{"$f":"COUNTA(F83:I83)","v":0},{"$f":"IF(M83=\"\", NA(), M83)","v":{"$error":"#N/A"}}]
[null,null,null,{"$f":"C79","v":"企業インターンシップ\nCorporate internship (including overseas)"},"5年次/5th year",null,null,null,null,null,null,null,null,{"$f":"IF(MAX(F84:I84)=0,\"\",MAX(F84:I84))","v":""},{"$f":"COUNTA(F84:I84)","v":0},{"$f":"IF(N84=\"\", NA(), N84)","v":{"$error":"#N/A"}}]
[null,"他分野の知識および、基礎的な技術力を自身の研究に取り入れ、成果を発表することができる\nIs able to incorporate knowledge from other fields and fundamental technical skills into his own research and to present associated results.","ファイバーイノベーション特論の履修\nCompletion of Special Course on Fiber Innovation (an omnibus lecture by engineers and researchers from other fields)",{"$f":"C85","v":"ファイバーイノベーション特論の履修\nCompletion of Special Course on Fiber Innovation (an omnibus lecture by engineers and researchers from other fields)"},null,"他分野の基礎知識および、基礎的な技術力を有している\nPossesses fundamental knowledge from other fields and fundamental technical skills.","他分野の知識および、基礎的な技術力を自身の研究に取り入れることができる\nIs able to incorporate knowledge from other fields and fundamental technical skills into his own research.","他分野の知識および、基礎的な技術力を自身の研究に取り入れ、実験等に生かすことができる\nIs able to incorporate knowledge from other fields and fundamental technical skills into his own research and use them in experiments and other activities.","他分野の知識および、基礎的な技術力を自身の研究に取り入れ、成果を発表することができる\nIs able to incorporate knowledge from other fields and fundamental technical skills into his own research and to present associated results."]
[null,null,null,{"$f":"C85","v":"ファイバーイノベーション特論の履修\nCompletion of Special Course on Fiber Innovation (an omnibus lecture by engineers and researchers from other fields)"},"1年次/1st year",null,null,null,null,{"$f":"IF(MAX(F86:I86)=0,\"\",MAX(F86:I86))","v":""},null,null,null,null,{"$f":"COUNTA(F86:I86)","v":0},{"$f":"IF(J86=\"\", NA(), J86)","v":{"$error":"#N/A"}},null,{"$f":"IF(AND(R56<>\"\", ISERROR(R62), ISERROR(R68), ISERROR(R74), ISERROR(R80),MAX(J86:N90)=0), \"\", IF(MAX(J86:N90)=0,NA(),MAX(J86:N90)))","v":{"$error":"#N/A"}}]
[null,null,null,{"$f":"C85","v":"ファイバーイノベーション特論の履修\nCompletion of Special Course on Fiber Innovation (an omnibus lecture by engineers and researchers from other fields)"},"2年次/2nd year",null,null,null,null,null,{"$f":"IF(MAX(F87:I87)=0,\"\",MAX(F87:I87))","v":""},null,null,null,{"$f":"COUNTA(F87:I87)","v":0},{"$f":"IF(K87=\"\", NA(), K87)","v":{"$error":"#N/A"}}]
[null,null,null,{"$f":"C85","v":"ファイバーイノベーション特論の履修\nCompletion of Special Course on Fiber Innovation (an omnibus lecture by engineers and researchers from other fields)"},"3年次/3rd year",null,null,null,null,null,null,{"$f":"IF(MAX(F88:I88)=0,\"\",MAX(F88:I88))","v":""},null,null,{"$f":"COUNTA(F88:I88)","v":0},{"$f":"IF(L88=\"\", NA(), L88)","v":{"$error":"#N/A"}}]
[null,null,null,{"$f":"C85","v":"ファイバーイノベーション特論の履修\nCompletion of Special Course on Fiber Innovation (an omnibus lecture by engineers and researchers from other fields)"},"4年次/4th year",null,null,null,null,null,null,null,{"$f":"IF(MAX(F89:I89)=0,\"\",MAX(F89:I89))","v":""},null,{"$f":"COUNTA(F89:I89)","v":0},{"$f":"IF(M89=\"\", NA(), M89)","v":{"$error":"#N/A"}}]
[null,null,null,{"$f":"C85","v":"ファイバーイノベーション特論の履修\nCompletion of Special Course on Fiber Innovation (an omnibus lecture by engineers and researchers from other fields)"},"5年次/5th year",null,null,null,null,null,null,null,null,{"$f":"IF(MAX(F90:I90)=0,\"\",MAX(F90:I90))","v":""},{"$f":"COUNTA(F90:I90)","v":0},{"$f":"IF(N90=\"\", NA(), N90)","v":{"$error":"#N/A"}}]
["【先導的なプロジェクトマネジメント能力】\nLeadership and project management skills","セミナー等の運営に積極的に関わり、自発的に行動し、運営を先導できる\nIs actively engaged with the holding of seminars and other events, undertakes voluntary action, and is able to play a leading role in orchestrating events.","学生による国際セミナー等の企画・運営\nStudent-lead planning and orchestration of international seminars and other events ",{"$f":"C91","v":"学生による国際セミナー等の企画・運営\nStudent-lead planning and orchestration of international seminars and other events "},null,"積極的に取り組み、目標設定および企画立案に貢献できる\nActively participates in and is able to contribute to the establishment of goals and to the planning process.","企画を客観的に検証し、問題点の提起・解決策を示すことができる\nIs able to objectively review plans, identify problem areas, and propose solutions.","外部に向けて、セミナーの企画の発表および交渉ができる\nIs able to present seminar plans to, and negotiate with, outside individuals.","セミナーの運営に積極的に関わり、自発的に行動し、運営を先導できる\nIs actively engaged with the holding of seminars and other events, undertakes voluntary action, and is able to play a leading role in orchestrating events.",null,null,null,null,null,null,null,null,null,{"$f":"IFERROR(AVERAGE(J91:J107),\"\")","v":""},{"$f":"IFERROR(AVERAGE(K91:K107),\"\")","v":""},{"$f":"IFERROR(AVERAGE(L91:L107),\"\")","v":""},{"$f":"IFERROR(AVERAGE(M91:M107),\"\")","v":""},{"$f":"IFERROR(AVERAGE(N91:N107),\"\")","v":""},{"$f":"MAX(S91:W107)","v":0}]
[null,null,null,{"$f":"C91","v":"学生による国際セミナー等の企画・運営\nStudent-lead planning and orchestration of international seminars and other events "},"1年次/1st year",null,null,null,null,{"$f":"IF(MAX(F92:I92)=0,\"\",MAX(F92:I92))","v":""},null,null,null,null,{"$f":"COUNTA(F92:I92)","v":0},{"$f":"J92","v":""},{"$f":"IF(J92=\"\", NA(), J92)","v":{"$error":"#N/A"}},{"$f":"IF(MAX(J92:N96)=0,\"\",MAX(J92:N96))","v":""}]
[null,null,null,{"$f":"C91","v":"学生による国際セミナー等の企画・運営\nStudent-lead planning and orchestration of international seminars and other events "},"2年次/2nd year",null,null,null,null,null,{"$f":"IF(MAX(F93:I93)=0,\"\",MAX(F93:I93))","v":""},null,null,null,{"$f":"COUNTA(F93:I93)","v":0},{"$f":"K93","v":""},{"$f":"IF(K93=\"\", NA(), K93)","v":{"$error":"#N/A"}}]
[null,null,null,{"$f":"C91","v":"学生による国際セミナー等の企画・運営\nStudent-lead planning and orchestration of international seminars and other events "},"3年次/3rd year",null,null,null,null,null,null,{"$f":"IF(MAX(F94:I94)=0,\"\",MAX(F94:I94))","v":""},null,null,{"$f":"COUNTA(F94:I94)","v":0},{"$f":"L94","v":""},{"$f":"IF(L94=\"\", NA(), L94)","v":{"$error":"#N/A"}}]
[null,null,null,{"$f":"C91","v":"学生による国際セミナー等の企画・運営\nStudent-lead planning and orchestration of international seminars and other events "},"4年次/4th year",null,null,null,null,null,null,null,{"$f":"IF(MAX(F95:I95)=0,\"\",MAX(F95:I95))","v":""},null,{"$f":"COUNTA(F95:I95)","v":0},{"$f":"M95","v":""},{"$f":"IF(M95=\"\", NA(), M95)","v":{"$error":"#N/A"}}]
[null,null,null,{"$f":"C91","v":"学生による国際セミナー等の企画・運営\nStudent-lead planning and orchestration of international seminars and other events "},"5年次/5th year",null,null,null,null,null,null,null,null,{"$f":"IF(MAX(F96:I96)=0,\"\",MAX(F96:I96))","v":""},{"$f":"COUNTA(F96:I96)","v":0},{"$f":"N96","v":""},{"$f":"IF(N96=\"\", NA(), N96)","v":{"$error":"#N/A"}}]
[null,"学修した内容を的確にまとめ、説明または発表することができる\nIs able to precisely summarize, describe, or present what he has learned.","ＭＯＴ科目の履修_Completion of MOT subjects",{"$f":"C97","v":"ＭＯＴ科目の履修_Completion of MOT subjects"},null,"講義／実習に積極的に取り組むことができる\nIs able to participate actively in lectures and practical training.","講義／実習の大まかな内容を捉えることができ\nHas a general understanding of the content of lectures and practical training.","講義／実習の内容について、十分な知識を有している\nHas adequate knowledge in the areas addressed in lectures and practical training.","学修した内容を的確にまとめ、説明または発表することができる\nIs able to precisely summarize, describe, or present what he has learned."]
[null,null,null,{"$f":"C97","v":"ＭＯＴ科目の履修_Completion of MOT subjects"},"1年次/1st year",null,null,null,null,{"$f":"IF(MAX(F98:I98)=0,\"\",MAX(F98:I98))","v":""},null,null,null,null,{"$f":"COUNTA(F98:I98)","v":0},{"$f":"IF(J98=\"\", NA(), J98)","v":{"$error":"#N/A"}},null,{"$f":"IF(MAX(J98:N102)=0,NA(),MAX(J98:N102))","v":{"$error":"#N/A"}}]
[null,null,null,{"$f":"C97","v":"ＭＯＴ科目の履修_Completion of MOT subjects"},"2年次/2nd year",null,null,null,null,null,{"$f":"IF(MAX(F99:I99)=0,\"\",MAX(F99:I99))","v":""},null,null,null,0,{"$f":"IF(K99=\"\", NA(), K99)","v":{"$error":"#N/A"}}]
[null,null,null,{"$f":"C97","v":"ＭＯＴ科目の履修_Completion of MOT subjects"},"3年次/3rd year",null,null,null,null,null,null,{"$f":"IF(MAX(F100:I100)=0,\"\",MAX(F100:I100))","v":""},null,null,0,{"$f":"IF(L100=\"\", NA(), L100)","v":{"$error":"#N/A"}}]
[null,null,null,{"$f":"C97","v":"ＭＯＴ科目の履修_Completion of MOT subjects"},"4年次/4th year",null,null,null,null,null,null,null,{"$f":"IF(MAX(F101:I101)=0,\"\",MAX(F101:I101))","v":""},null,0,{"$f":"IF(M101=\"\", NA(), M101)","v":{"$error":"#N/A"}}]
[null,null,null,{"$f":"C97","v":"ＭＯＴ科目の履修_Completion of MOT subjects"},"5年次/5th year",null,null,null,null,null,null,null,null,{"$f":"IF(MAX(F102:I102)=0,\"\",MAX(F102:I102))","v":""},0,{"$f":"IF(N102=\"\", NA(), N102)","v":{"$error":"#N/A"}}]
[null,null,"ＭＢＡ関連授業の履修_Completion of MBA-related classes",{"$f":"C103","v":"ＭＢＡ関連授業の履修_Completion of MBA-related classes"},"1年次/1st year",null,null,null,null,{"$f":"IF(MAX(F103:I103)=0,\"\",MAX(F103:I103))","v":""},null,null,null,null,0,{"$f":"IF(J103=\"\", NA(), J103)","v":{"$error":"#N/A"}},null,{"$f":"IF(MAX(J103:N107)=0,NA(),MAX(J103:N107))","v":{"$error":"#N/A"}}]
[null,null,null,{"$f":"C103","v":"ＭＢＡ関連授業の履修_Completion of MBA-related classes"},"2年次/2nd year",null,null,null,null,null,{"$f":"IF(MAX(F104:I104)=0,\"\",MAX(F104:I104))","v":""},null,null,null,0,{"$f":"IF(K104=\"\", NA(), K104)","v":{"$error":"#N/A"}}]
[null,null,null,{"$f":"C103","v":"ＭＢＡ関連授業の履修_Completion of MBA-related classes"},"3年次/3rd year",null,null,null,null,null,null,{"$f":"IF(MAX(F105:I105)=0,\"\",MAX(F105:I105))","v":""},null,null,0,{"$f":"IF(L105=\"\", NA(), L105)","v":{"$error":"#N/A"}}]
[null,null,null,{"$f":"C103","v":"ＭＢＡ関連授業の履修_Completion of MBA-related classes"},"4年次/4th year",null,null,null,null,null,null,null,{"$f":"IF(MAX(F106:I106)=0,\"\",MAX(F106:I106))","v":""},null,0,{"$f":"IF(M106=\"\", NA(), M106)","v":{"$error":"#N/A"}}]
[null,null,null,{"$f":"C103","v":"ＭＢＡ関連授業の履修_Completion of MBA-related classes"},"5年次/5th year",null,null,null,null,null,null,null,null,{"$f":"IF(MAX(F107:I107)=0,\"\",MAX(F107:I107))","v":""},0,{"$f":"IF(N107=\"\", NA(), N107)","v":{"$error":"#N/A"}}]
["批判的思考力\n【問題解決・コミュニケーション能力を有している】\nCritical thinking ability: Possesses problem-solving and communication skills.","特別課題研究の論文の発表ができる\nIs able to present a research paper describing a special research assignment.","特別課題研究_Special-topic research",{"$f":"C108","v":"特別課題研究_Special-topic research"},null,"特別課題研究の進捗状況の把握・マネージメントができている\nIs able to assess and manage progress in a special research assignment.","特別課題研究の現段階での問題点を明確に説明することができる\nIs able to clearly describe problem areas at the current stage of special-topic research.","特別課題研究の現段階での問題点の解決策を提案・説明することができる\nIs able to propose and describe solutions for problem areas at the current stage of a special research assignment.","特別課題研究の論文の発表ができる\nIs able to present a research paper describing special-topic research.",null,null,null,null,null,null,null,null,null,{"$f":"IFERROR(AVERAGE(J108:J137),\"\")","v":""},{"$f":"IFERROR(AVERAGE(K108:K137),\"\")","v":""},{"$f":"IFERROR(AVERAGE(L108:L137),\"\")","v":""},{"$f":"IFERROR(AVERAGE(M108:M137),\"\")","v":""},{"$f":"IFERROR(AVERAGE(N108:N137),\"\")","v":""},{"$f":"MAX(S108:W137)","v":0}]
[null,null,null,{"$f":"C108","v":"特別課題研究_Special-topic research"},"1年次/1st year",null,null,null,null,{"$f":"IF(MAX(F109:I109)=0,\"\",MAX(F109:I109))","v":""},null,null,null,null,{"$f":"COUNTA(F109:I109)","v":0},{"$f":"IF(J109=\"\", NA(), J109)","v":{"$error":"#N/A"}},null,{"$f":"IF(MAX(J109:N113)=0,NA(),MAX(J109:N113))","v":{"$error":"#N/A"}}]
[null,null,null,{"$f":"C108","v":"特別課題研究_Special-topic research"},"2年次/2nd year",null,null,null,null,null,{"$f":"IF(MAX(F110:I110)=0,\"\",MAX(F110:I110))","v":""},null,null,null,{"$f":"COUNTA(F110:I110)","v":0},{"$f":"IF(K110=\"\", NA(), K110)","v":{"$error":"#N/A"}}]
[null,null,null,{"$f":"C108","v":"特別課題研究_Special-topic research"},"3年次/3rd year",null,null,null,null,null,null,{"$f":"IF(MAX(F111:I111)=0,\"\",MAX(F111:I111))","v":""},null,null,{"$f":"COUNTA(F111:I111)","v":0},{"$f":"IF(L111=\"\", NA(), L111)","v":{"$error":"#N/A"}}]
[null,null,null,{"$f":"C108","v":"特別課題研究_Special-topic research"},"4年次/4th year",null,null,null,null,null,null,null,{"$f":"IF(MAX(F112:I112)=0,\"\",MAX(F112:I112))","v":""},null,{"$f":"COUNTA(F112:I112)","v":0},{"$f":"IF(M112=\"\", NA(), M112)","v":{"$error":"#N/A"}}]
[null,null,null,{"$f":"C108","v":"特別課題研究_Special-topic research"},"5年次/5th year",null,null,null,null,null,null,null,null,{"$f":"IF(MAX(F113:I113)=0,\"\",MAX(F113:I113))","v":""},{"$f":"COUNTA(F113:I113)","v":0},{"$f":"IF(N113=\"\", NA(), N113)","v":{"$error":"#N/A"}}]
[null,"英語でのコミュニケーションがスムーズにでき、文献を英語で読め、他分野の論文も読んで理解できる\nIs able to communicate smoothly in English, read sources in English, and read and understand research papers in other fields.","外国人特任教員による英語教育プログラム\nEnglish-language education program taught by specially appointed foreign instructors (Participation in debates, presentations, and communication exercises)",{"$f":"C114","v":"外国人特任教員による英語教育プログラム\nEnglish-language education program taught by specially appointed foreign instructors (Participation in debates, presentations, and communication exercises)"},null,"継続的な学修を続け、日常でも英語の習得に努めている\nLearns continuously and strives to master English on a daily basis.","英語を使用しての筆記・口頭のいずれのコミュニケーションも良好にできる\nIs able to communicate effectively both in writing and orally using English.","英語でのコミュニケーションがスムーズにでき、論文を英語で記述・発表できる\nIs able to communicate smoothly in English and to write and present a research paper in English.","英語でのコミュニケーションがスムーズにでき、文献を英語で読め、他分野の論文も読んで理解できる\nIs able to communicate smoothly in English, to read sources in English, and to read and understand research papers in other fields."]
[null,null,null,{"$f":"C114","v":"外国人特任教員による英語教育プログラム\nEnglish-language education program taught by specially appointed foreign instructors (Participation in debates, presentations, and communication exercises)"},"1年次/1st year",null,null,null,null,{"$f":"IF(MAX(F115:I115)=0,\"\",MAX(F115:I115))","v":""},null,null,null,null,{"$f":"COUNTA(F115:I115)","v":0},{"$f":"IF(J115=\"\", NA(), J115)","v":{"$error":"#N/A"}},null,{"$f":"IF(MAX(J115:N119)=0,NA(),MAX(J115:N119))","v":{"$error":"#N/A"}}]
[null,null,null,{"$f":"C114","v":"外国人特任教員による英語教育プログラム\nEnglish-language education program taught by specially appointed foreign instructors (Participation in debates, presentations, and communication exercises)"},"2年次/2nd year",null,null,null,null,null,{"$f":"IF(MAX(F116:I116)=0,\"\",MAX(F116:I116))","v":""},null,null,null,{"$f":"COUNTA(F116:I116)","v":0},{"$f":"IF(K116=\"\", NA(), K116)","v":{"$error":"#N/A"}}]
[null,null,null,{"$f":"C114","v":"外国人特任教員による英語教育プログラム\nEnglish-language education program taught by specially appointed foreign instructors (Participation in debates, presentations, and communication exercises)"},"3年次/3rd year",null,null,null,null,null,null,{"$f":"IF(MAX(F117:I117)=0,\"\",MAX(F117:I117))","v":""},null,null,{"$f":"COUNTA(F117:I117)","v":0},{"$f":"IF(L117=\"\", NA(), L117)","v":{"$error":"#N/A"}}]
[null,null,null,{"$f":"C114","v":"外国人特任教員による英語教育プログラム\nEnglish-language education program taught by specially appointed foreign instructors (Participation in debates, presentations, and communication exercises)"},"4年次/4th year",null,null,null,null,null,null,null,{"$f":"IF(MAX(F118:I118)=0,\"\",MAX(F118:I118))","v":""},null,{"$f":"COUNTA(F118:I118)","v":0},{"$f":"IF(M118=\"\", NA(), M118)","v":{"$error":"#N/A"}}]
[null,null,null,{"$f":"C114","v":"外国人特任教員による英語教育プログラム\nEnglish-language education program taught by specially appointed foreign instructors (Participation in debates, presentations, and communication exercises)"},"5年次/5th year",null,null,null,null,null,null,null,null,{"$f":"IF(MAX(F119:I119)=0,\"\",MAX(F119:I119))","v":""},{"$f":"COUNTA(F119:I119)","v":0},{"$f":"IF(N119=\"\", NA(), N119)","v":{"$error":"#N/A"}}]
[null,"交渉することができ、個人的な成果を示すことができる\nIs able to negotiate and present individual results.","産業界・官界の研究者・実務者との討論\nDiscussions with researchers and businessmen from industry and government",{"$f":"C120","v":"産業界・官界の研究者・実務者との討論\nDiscussions with researchers and businessmen from industry and government"},null,"問題を理解し、説明することができる\nUnderstands problems and is able to describe them.","問題・解決策を理論的に主張・討論することができる\nIs able to theoretically assert and discuss problems and solutions.","解決策を提案、展開することができる\nIs able to propose and apply solutions.","交渉することができ、個人的な成果を示すことができる\nIs able to negotiate and present individual results."]
[null,null,null,{"$f":"C120","v":"産業界・官界の研究者・実務者との討論\nDiscussions with researchers and businessmen from industry and government"},"1年次/1st year",null,null,null,null,{"$f":"IF(MAX(F121:I121)=0,\"\",MAX(F121:I121))","v":""},null,null,null,null,{"$f":"COUNTA(F121:I121)","v":0},{"$f":"IF(J121=\"\", NA(), J121)","v":{"$error":"#N/A"}},null,{"$f":"IF(MAX(J121:N125)=0,NA(),MAX(J121:N125))","v":{"$error":"#N/A"}}]
[null,null,null,{"$f":"C120","v":"産業界・官界の研究者・実務者との討論\nDiscussions with researchers and businessmen from industry and government"},"2年次/2nd year",null,null,null,null,null,{"$f":"IF(MAX(F122:I122)=0,\"\",MAX(F122:I122))","v":""},null,null,null,{"$f":"COUNTA(F122:I122)","v":0},{"$f":"IF(K122=\"\", NA(), K122)","v":{"$error":"#N/A"}}]
[null,null,null,{"$f":"C120","v":"産業界・官界の研究者・実務者との討論\nDiscussions with researchers and businessmen from industry and government"},"3年次/3rd year",null,null,null,null,null,null,{"$f":"IF(MAX(F123:I123)=0,\"\",MAX(F123:I123))","v":""},null,null,{"$f":"COUNTA(F123:I123)","v":0},{"$f":"IF(L123=\"\", NA(), L123)","v":{"$error":"#N/A"}}]
[null,null,null,{"$f":"C120","v":"産業界・官界の研究者・実務者との討論\nDiscussions with researchers and businessmen from industry and government"},"4年次/4th year",null,null,null,null,null,null,null,{"$f":"IF(MAX(F124:I124)=0,\"\",MAX(F124:I124))","v":""},null,{"$f":"COUNTA(F124:I124)","v":0},{"$f":"IF(M124=\"\", NA(), M124)","v":{"$error":"#N/A"}}]
[null,null,null,{"$f":"C120","v":"産業界・官界の研究者・実務者との討論\nDiscussions with researchers and businessmen from industry and government"},"5年次/5th year",null,null,null,null,null,null,null,null,{"$f":"IF(MAX(F125:I125)=0,\"\",MAX(F125:I125))","v":""},{"$f":"COUNTA(F125:I125)","v":0},{"$f":"IF(N125=\"\", NA(), N125)","v":{"$error":"#N/A"}}]
[null,"成果をまとめ、成果を示すことができる\nIs able to summarize and present results.","合宿によるチームワーキング_Teamwork at training camps",{"$f":"C126","v":"合宿によるチームワーキング_Teamwork at training camps"},null,"積極的に取り組み、プレゼンの目標設定および企画立案に貢献できる\nActively participates in and is able to contribute to the establishment of presentation goals and to the planning process.","プレゼンを客観的に検証し、問題点の提起・解決策を示すことができる\nIs able to objectively review presentations, identify problem areas, and propose solutions.","周囲と協力して、プレゼンテーションの発表・質疑応答（問題解決）ができる\nIs able to cooperate with others, give presentations, and engage in question-and-answer sessions (resolve problems).","成果をまとめ、成果を示すことができる\nIs able to summarize and present results."]
[null,null,null,{"$f":"C126","v":"合宿によるチームワーキング_Teamwork at training camps"},"1年次/1st year",null,null,null,null,{"$f":"IF(MAX(F127:I127)=0,\"\",MAX(F127:I127))","v":""},null,null,null,null,{"$f":"COUNTA(F127:I127)","v":0},{"$f":"IF(J127=\"\", NA(), J127)","v":{"$error":"#N/A"}},null,{"$f":"IF(MAX(J127:N131)=0,NA(),MAX(J127:N131))","v":{"$error":"#N/A"}}]
[null,null,null,{"$f":"C126","v":"合宿によるチームワーキング_Teamwork at training camps"},"2年次/2nd year",null,null,null,null,null,{"$f":"IF(MAX(F128:I128)=0,\"\",MAX(F128:I128))","v":""},null,null,null,{"$f":"COUNTA(F128:I128)","v":0},{"$f":"IF(K128=\"\", NA(), K128)","v":{"$error":"#N/A"}}]
[null,null,null,{"$f":"C126","v":"合宿によるチームワーキング_Teamwork at training camps"},"3年次/3rd year",null,null,null,null,null,null,{"$f":"IF(MAX(F129:I129)=0,\"\",MAX(F129:I129))","v":""},null,null,{"$f":"COUNTA(F129:I129)","v":0},{"$f":"IF(L129=\"\", NA(), L129)","v":{"$error":"#N/A"}}]
[null,null,null,{"$f":"C126","v":"合宿によるチームワーキング_Teamwork at training camps"},"4年次/4th year",null,null,null,null,null,null,null,{"$f":"IF(MAX(F130:I130)=0,\"\",MAX(F130:I130))","v":""},null,{"$f":"COUNTA(F130:I130)","v":0},{"$f":"IF(M130=\"\", NA(), M130)","v":{"$error":"#N/A"}}]
[null,null,null,{"$f":"C126","v":"合宿によるチームワーキング_Teamwork at training camps"},"5年次/5th year",null,null,null,null,null,null,null,null,{"$f":"IF(MAX(F131:I131)=0,\"\",MAX(F131:I131))","v":""},{"$f":"COUNTA(F131:I131)","v":0},{"$f":"IF(N131=\"\", NA(), N131)","v":{"$error":"#N/A"}}]
[null,"現状を客観的に把握し、迅速に問題に対応・解決でき先導して、組織を動かし、成果を示すことができる\nIs able to objectively assess the current situation, take the lead in quickly addressing and resolving problems, utilize organizational resources, and present results.","批判的思考力_Critical thinking skills",{"$f":"C132","v":"批判的思考力_Critical thinking skills"},null,"リーダーとして知識と社会性を兼ね備え、正確な情報を収集することができる\nCombines knowledge and social skills as a leader and is able to gather accurate information.","リーダーとして偏見を持たずに、理論的な思考・推論ができる\nIs able to think and reason theoretically without bias as a leader.","広い視野を持ち、現状を客観的に把握し、問題を解決できる\nHas a broad outlook and is able to objectively assess the current situation and resolve problems.","現状を客観的に把握し、迅速に問題に対応・解決でき先導して、組織を動かし、成果を示すことができる\nIs able to objectively assess the current situation, take the lead in quickly addressing and resolving problems, utilize organizational resources, and present results."]
[null,null,null,{"$f":"C132","v":"批判的思考力_Critical thinking skills"},"1年次/1st year",null,null,null,null,{"$f":"IF(MAX(F133:I133)=0,\"\",MAX(F133:I133))","v":""},null,null,null,null,{"$f":"COUNTA(F133:I133)","v":0},{"$f":"IF(J133=\"\", NA(), J133)","v":{"$error":"#N/A"}},null,{"$f":"IF(AND(R92<>\"\", ISERROR(R98), ISERROR(R103), ISERROR(R109), ISERROR(R115), ISERROR(R121), ISERROR(R127), MAX(J133:N137)=0), \"\", IF(MAX(J133:N137)=0,NA(),MAX(J133:N137)))","v":{"$error":"#N/A"}}]
[null,null,null,{"$f":"C132","v":"批判的思考力_Critical thinking skills"},"2年次/2nd year",null,null,null,null,null,{"$f":"IF(MAX(F134:I134)=0,\"\",MAX(F134:I134))","v":""},null,null,null,{"$f":"COUNTA(F134:I134)","v":0},{"$f":"IF(K134=\"\", NA(), K134)","v":{"$error":"#N/A"}}]
[null,null,null,{"$f":"C132","v":"批判的思考力_Critical thinking skills"},"3年次/3rd year",null,null,null,null,null,null,{"$f":"IF(MAX(F135:I135)=0,\"\",MAX(F135:I135))","v":""},null,null,{"$f":"COUNTA(F135:I135)","v":0},{"$f":"IF(L135=\"\", NA(), L135)","v":{"$error":"#N/A"}}]
[null,null,null,{"$f":"C132","v":"批判的思考力_Critical thinking skills"},"4年次/4th year",null,null,null,null,null,null,null,{"$f":"IF(MAX(F136:I136)=0,\"\",MAX(F136:I136))","v":""},null,{"$f":"COUNTA(F136:I136)","v":0},{"$f":"IF(M136=\"\", NA(), M136)","v":{"$error":"#N/A"}}]
[null,null,null,{"$f":"C132","v":"批判的思考力_Critical thinking skills"},"5年次/5th year",null,null,null,null,null,null,null,null,{"$f":"IF(MAX(F137:I137)=0,\"\",MAX(F137:I137))","v":""},{"$f":"COUNTA(F137:I137)","v":0},{"$f":"IF(N137=\"\", NA(), N137)","v":{"$error":"#N/A"}}]
["その他【英語力】\nOther: English proficiency","英語力\nEnglish proficiency",null,null,null,"~TOEIC700","~TOEIC750","~TOEIC800","TOEIC801~",null,null,null,null,null,null,null,null,null,null,null,null,null,{"$f":"MAX(I138:M143)","v":0},{"$f":"MAX(J138:N143)","v":0}]
[null,null,"ＴＯＥＩＣ　テストスコア_Score",{"$f":"C139","v":"ＴＯＥＩＣ　テストスコア_Score"},"1年次/1st year",null,null,null,null,{"$f":"IFERROR(IF(SUM(F139:I139)=0,NA(),SUM(F139:I139)),\"\")","v":""},null,null,null,null,{"$f":"COUNTA(F139:I139)","v":0},null,null,null,{"$f":"IF(J139=\"\", NA(), J139)","v":{"$error":"#N/A"}}]
[null,null,"ＴＯＥＩＣ　テストスコア_Score",{"$f":"C140","v":"ＴＯＥＩＣ　テストスコア_Score"},"2年次/2nd year",null,null,null,null,null,{"$f":"IFERROR(IF(SUM(F140:I140)=0,NA(),SUM(F140:I140)),\"\")","v":""},null,null,null,{"$f":"COUNTA(F140:I140)","v":0},null,null,null,{"$f":"IF(K140=\"\", NA(), K140)","v":{"$error":"#N/A"}}]
[null,null,"ＴＯＥＩＣ　テストスコア_Score","ＴＯＥＩＣ　テストスコア_Score","3年次/3rd year",null,null,null,null,null,null,{"$f":"IFERROR(IF(SUM(F141:I141)=0,NA(),SUM(F141:I141)),\"\")","v":""},null,null,{"$f":"COUNTA(F141:I141)","v":0},null,null,null,{"$f":"IF(L141=\"\", NA(), L141)","v":{"$error":"#N/A"}}]
[null,null,"ＴＯＥＩＣ　テストスコア_Score","ＴＯＥＩＣ　テストスコア_Score","4年次/4th year",null,null,null,null,null,null,null,{"$f":"IFERROR(IF(SUM(F142:I142)=0,NA(),SUM(F142:I142)),\"\")","v":""},null,{"$f":"COUNTA(F142:I142)","v":0},null,null,null,{"$f":"IF(M142=\"\", NA(), M142)","v":{"$error":"#N/A"}}]
[null,null,"ＴＯＥＩＣ　テストスコア_Score","ＴＯＥＩＣ　テストスコア_Score","5年次/5th year",null,null,null,null,null,null,null,null,{"$f":"IFERROR(IF(SUM(F143:I143)=0,NA(),SUM(F143:I143)),\"\")","v":""},{"$f":"COUNTA(F143:I143)","v":0},{"$f":"IFERROR(IF(SUM(G143:J143)=0,NA(),SUM(G143:J143)),\"\")","v":""},{"$f":"IFERROR(IF(SUM(H143:K143)=0,NA(),SUM(H143:K143)),\"\")","v":""},null,{"$f":"IF(N143=\"\", NA(), N143)","v":{"$error":"#N/A"}}]

{"sheet":"Form13-2(Memo)","index":2,"n_rows":9,"n_cols":6,"rows_kept":9,"cut":false,"hidden":false,"merged":[[0,0,0,2]]}
["メモ・改善点等　Comments, improvement areas, etc."]
["領　　域\nArea",{"$f":"'Form13-2'!E5","v":"1年次/1st year"},{"$f":"'Form13-2'!E6","v":"2年次/2nd year"},{"$f":"'Form13-2'!E7","v":"3年次/3rd year"},{"$f":"'Form13-2'!E8","v":"4年次/4th year"},{"$f":"'Form13-2'!E9","v":"5年次/5th year"}]
["【繊維ファイバー工学分野において、基礎となる知識がある】\nPossesses fundamental knowledge in the textile and fiber engineering field."]
["【広い科学技術的視野と国際的視野を有している】\nPossesses a broad scientific and international outlook."]
["【異分野、異業種のグローバルな橋渡しにより新しい価値を創出できる能力を有している】\nPossesses the skills needed to create new value by serving as a global bridge to other fields and industries."]
["【先導的なプロジェクトマネジメント能力】\nLeadership and project management skills"]
["批判的思考力\n【問題解決・コミュニケーション能力を有している】\nCritical thinking ability: Possesses problem-solving and communication skills."]
["その他【英語力】\nOther: English proficiency"]
["【全体】メモ・改善点等\nComments, improvement areas, etc."]

{"sheet":"Form13-2(Chart)","index":3,"n_rows":101,"n_cols":12,"rows_kept":101,"cut":false,"hidden":false,"merged":[[62,0,63,0],[62,1,62,11],[63,2,63,11],[72,0,72,11],[73,0,81,11],[82,0,82,4],[65,0,67,3],[71,0,71,11],[68,5,68,11],[69,5,69,11],[70,5,70,11],[53,0,53,3],[53,4,53,11],[54,0,56,3],[54,4,56,11],[57,0,57,3],[57,4,57,11],[58,0,60,3],[58,4,61,11],[61,0,61,3],[47,6,47,11],[48,2,48,5],[48,6,48,11],[49,0,49,11],[50,0,52,3],[50,4,52,11],[43,0,48,0],[43,1,43,11],[44,1,48,1],[44,2,44,5],[44,6,44,11],[45,2,45,5],[45,6,45,11],[46,2,46,5],[46,6,46,11],[47,2,47,5],[36,0,38,3],[36,4,39,11],[39,0,39,3],[40,0,42,0],[40,1,40,11],[41,1,42,1],[41,2,41,5],[41,6,41,11],[42,2,42,5],[42,6,42,11],[27,0,27,11],[28,0,30,3],[28,4,30,11],[31,0,31,3],[31,4,31,11],[32,0,34,3],[32,4,34,11],[35,0,35,3],[35,4,35,11],[23,0,26,0],[23,1,23,11],[24,1,26,1],[24,2,24,5],[24,6,24,11],[25,2,25,5],[19,0,22,0],[19,1,19,11],[20,1,22,1],[20,2,20,5],[20,6,20,11],[25,6,25,11],[26,2,26,5],[26,6,26,11],[14,0,14,3],[14,4,14,11],[15,0,17,3],[15,4,18,11],[18,0,18,3],[21,2,21,5],[21,6,21,11],[22,2,22,5],[22,6,22,11],[11,0,13,3],[11,4,13,11],[0,0,0,5],[0,7,0,11],[1,3,1,11],[2,0,2,11],[3,0,3,11],[4,0,5,0],[4,1,4,11],[5,2,5,11],[6,0,6,11],[7,0,9,3],[7,4,9,11],[10,0,10,3],[10,4,10,11],[95,0,97,0],[83,1,85,4],[86,1,88,4],[89,1,91,4],[92,1,94,4],[95,1,97,4],[98,0,100,0],[98,1,100,4],[64,0,64,3],[64,4,64,11],[65,5,65,11],[66,5,66,11],[67,5,67,11],[83,0,85,0],[86,0,88,0],[89,0,91,0],[92,0,94,0]]}
["リーディング学生中間報告書/Advanced Leading Graduate Program Interim Report",null,null,null,null,null,"更新日",{"$f":"IFERROR('Form13-2'!I1, \"\")","v":"00:00:00"}]
["学籍番号\nStudent no.",{"$f":"IFERROR('Form13-1'!G2,\"\")","v":0},"氏　名\nName",{"$f":"IFERROR('Form13-1'!D2,\"\")","v":0}]
["繊維・ファイバー工学分野における高度かつ総合的な専門性を有し、広い科学技術的視野と国際的視野、分野間のコーディネート力、技術力だけでなく人間力を見抜く力を備えた「ファイバールネッサンスを先導するグローバルリーダー」となる \nTo become a global leader in fiber renaissance with an advanced and comprehensive level of expertise in the field of textile and fiber engineering, a broad technical and scientific perspective, an international outlook, the ability to coordinate the efforts of others working in different fields, a high level of technological skill, and the ability to relate to, and work with, others effectively"]
[]
["領　　域\nArea","【繊維ファイバー工学分野において、基礎となる知識がある】\nPossesses fundamental knowledge in the textile and fiber engineering field."]
[null,"最終達成目標\nLast objective achieved","学修した内容を的確にまとめ、説明または発表することができる\nIs able to precisely summarize, describe, or present what he has learned."]
["達　　成　　度　/　メモ・改善点等　Level of achievement / Comments, improvement areas, etc."]
[]
[]
[]
[{"$f":"IF('Form13-2(Memo)'!B3=\"\", \"\", 'Form13-2(Memo)'!B3)","v":""},null,null,null,{"$f":"IF('Form13-2(Memo)'!E3=\"\", \"\", 'Form13-2(Memo)'!E3)","v":""}]
[]
[]
[]
[{"$f":"IF('Form13-2(Memo)'!C3=\"\", \"\", 'Form13-2(Memo)'!C3)","v":""},null,null,null,{"$f":"IF('Form13-2(Memo)'!F3=\"\", \"\", 'Form13-2(Memo)'!F3)","v":""}]
[]
[]
[]
[{"$f":"IF('Form13-2(Memo)'!D3=\"\", \"\", 'Form13-2(Memo)'!D3)","v":""}]
["領　　域\nArea","【広い科学技術的視野と国際的視野を有している】\nPossesses a broad scientific and international outlook."]
[null,"最終達成目標\nLast objective achieved","現在の国際情勢の中で、問題点を提起・説明できる\nIs able to identify and explain problem areas in the current international situation.",null,null,null,"国際的視野\nInternational outlook"]
[null,null,"自身の研究課題について、広い科学技術的視野から、分析し、自己評価することができる\nIs able to analyze and assess his own research topic from a broad scientific perspective.",null,null,null,"広い科学技術的視野\nBroad scientific perspective"]
[null,null,"自身の研究課題を国際的社会的な課題と捉え、問題解決として提案・発表することができる\nUnderstands his own research topic in the context of issues in international society and is able to propose and present it as a way to resolve associated problems.",null,null,null,"自身の研究から人類社会の諸課題への発展\nApplication of own research to the problems of human society"]
["領　　域\nArea","【異分野、異業種のグローバルな橋渡しにより新しい価値を創出できる能力を有している】\nPossesses the skills needed to create new value by serving as a global bridge to other fields and industries."]
[null,"最終達成目標\nLast objective achieved","副研究室で積極的に活動に参加し、特別課題研究に役立つ発想・技術力を有している\nParticipates actively in activities of his  lab and has ideas and skills that are useful in special research assignments.",null,null,null,"研究室ローテーション\nLab rotation"]
[null,null,"組織の中で、問題解決に取り組み、個人および組織的な成果を示すことができる\nWorks to solve problems within the organization and is able to express individual and organizational results.",null,null,null,"企業インターンシップ\nCorporate internship (including overseas)"]
[null,null,"他分野の知識および、基礎的な技術力を自身の研究に取り入れ、成果を発表することができる\nIs able to incorporate knowledge from other fields and fundamental technical skills into his own research and to present associated results.",null,null,null,"ファイバーイノベーション特論の履修\nCompletion of Special Course on Fiber Innovation (an omnibus lecture by engineers and researchers from other fields)"]
["達　　成　　度　/　メモ・改善点等　Level of achievement / Comments, improvement areas, etc."]
[]
[]
[]
[{"$f":"CONCATENATE(IF('Form13-2(Memo)'!B4=\"\",\"\",'Form13-2(Memo)'!B4),CHAR(10),IF('Form13-2(Memo)'!B5=\"\",\"\",'Form13-2(Memo)'!B5))","v":"\n"},null,null,null,{"$f":"CONCATENATE(IF('Form13-2(Memo)'!E4=\"\",\"\",'Form13-2(Memo)'!E4),CHAR(10),IF('Form13-2(Memo)'!E5=\"\",\"\",'Form13-2(Memo)'!E5))","v":"\n"}]
[]
[]
[]
[{"$f":"CONCATENATE(IF('Form13-2(Memo)'!C4=\"\",\"\",'Form13-2(Memo)'!C4),CHAR(10),IF('Form13-2(Memo)'!C5=\"\",\"\",'Form13-2(Memo)'!C5))","v":"\n"},null,null,null,{"$f":"CONCATENATE(IF('Form13-2(Memo)'!F4=\"\",\"\",'Form13-2(Memo)'!F4),CHAR(10),IF('Form13-2(Memo)'!F5=\"\",\"\",'Form13-2(Memo)'!F5))","v":"\n"}]
[]
[]
[]
[{"$f":"CONCATENATE(IF('Form13-2(Memo)'!D4=\"\",\"\",'Form13-2(Memo)'!D4),CHAR(10),IF('Form13-2(Memo)'!D5=\"\",\"\",'Form13-2(Memo)'!D5))","v":"\n"}]
["領　　域\nArea","【先導的なプロジェクトマネジメント能力】 Leadership and project management skills"]
[null,"最終達成目標\nLast objective achieved","セミナー等の運営に積極的に関わり、自発的に行動し、運営を先導できる\nIs actively engaged with the holding of seminars and other events, undertakes voluntary action, and is able to play a leading role in orchestrating events.",null,null,null,"学生による国際セミナー等の企画・運営 \nStudent-lead planning and orchestration of international seminars and other events "]
[null,null,"学修した内容を的確にまとめ、説明または発表することができる\nIs able to precisely summarize, describe, or present what he has learned.",null,null,null,"ＭＯＴ科目の履修_Completion of MOT subjects / ＭＢＡ関連授業の履修_Completion of MBA-related classes"]
["領　　域\nArea","批判的思考力　【問題解決・コミュニケーション能力を有している】\nCritical thinking ability: Possesses problem-solving and communication skills."]
[null,"最終達成目標\nLast objective achieved","特別課題研究の論文の発表ができる\nIs able to present a research paper describing a special research assignment.",null,null,null,"特別課題研究 \nSpecial-topic research"]
[null,null,"英語でのコミュニケーションがスムーズにでき、文献を英語で読め、他分野の論文も読んで理解できる\nIs able to communicate smoothly in English, read sources in English, and read and understand research papers in other fields.",null,null,null,"外国人特任教員による英語教育プログラム \nEnglish-language education program taught by specially appointed foreign instructors (Participation in debates, presentations, and communication exercises)"]
[null,null,"交渉することができ、個人的な成果を示すことができる\nIs able to negotiate and present individual results.",null,null,null,"産業界・官界の研究者・実務者との討論 \nDiscussions with researchers and businessmen from industry and government"]
[null,null,"成果をまとめ、成果を示すことができる\nIs able to summarize and present results.",null,null,null,"合宿によるチームワーキング \nTeamwork at training camps"]
[null,null,"現状を客観的に把握し、迅速に問題に対応・解決でき先導して、組織を動かし、成果を示すことができる\nIs able to objectively assess the current situation, take the lead in quickly addressing and resolving problems, utilize organizational resources, and present results.",null,null,null,"批判的思考力 \nCritical thinking skills"]
["達　　成　　度　/　メモ・改善点等　Level of achievement / Comments, improvement areas, etc."]
[]
[]
[]
[{"$f":"CONCATENATE(IF('Form13-2(Memo)'!B6=\"\",\"\",'Form13-2(Memo)'!B6),CHAR(10),IF('Form13-2(Memo)'!B7=\"\",\"\",'Form13-2(Memo)'!B7))","v":"\n"},null,null,null,{"$f":"CONCATENATE(IF('Form13-2(Memo)'!E6=\"\",\"\",'Form13-2(Memo)'!E6),CHAR(10),IF('Form13-2(Memo)'!E7=\"\",\"\",'Form13-2(Memo)'!E7))","v":"\n"}]
[]
[]
[]
[{"$f":"CONCATENATE(IF('Form13-2(Memo)'!C6=\"\",\"\",'Form13-2(Memo)'!C6),CHAR(10),IF('Form13-2(Memo)'!C7=\"\",\"\",'Form13-2(Memo)'!C7))","v":"\n"},null,null,null,{"$f":"CONCATENATE(IF('Form13-2(Memo)'!F6=\"\",\"\",'Form13-2(Memo)'!F6),CHAR(10),IF('Form13-2(Memo)'!F7=\"\",\"\",'Form13-2(Memo)'!F7))","v":"\n"}]
[]
[]
[]
[{"$f":"CONCATENATE(IF('Form13-2(Memo)'!D6=\"\",\"\",'Form13-2(Memo)'!D6),CHAR(10),IF('Form13-2(Memo)'!D7=\"\",\"\",'Form13-2(Memo)'!D7))","v":"\n"}]
["領　　域\nArea","その他【英語力】Other: English proficiency"]
[null,"最終達成目標\nLast objective achieved","英語力\nEnglish proficiency"]
["達　　成　　度　Level of achievement",null,null,null,"メモ・改善点等　Comments, improvement areas, etc."]
[null,null,null,null,{"$f":"'Form13-2(Memo)'!B2","v":"1年次/1st year"},{"$f":"IF('Form13-2(Memo)'!B8=\"\", \"\", 'Form13-2(Memo)'!B8)","v":""}]
[null,null,null,null,{"$f":"'Form13-2(Memo)'!C2","v":"2年次/2nd year"},{"$f":"IF('Form13-2(Memo)'!C8=\"\", \"\", 'Form13-2(Memo)'!C8)","v":""}]
[null,null,null,null,{"$f":"'Form13-2(Memo)'!D2","v":"3年次/3rd year"},{"$f":"IF('Form13-2(Memo)'!D8=\"\", \"\", 'Form13-2(Memo)'!D8)","v":""}]
[null,null,null,null,{"$f":"'Form13-2(Memo)'!E2","v":"4年次/4th year"},{"$f":"IF('Form13-2(Memo)'!E8=\"\", \"\", 'Form13-2(Memo)'!E8)","v":""}]
[null,null,null,null,{"$f":"'Form13-2(Memo)'!F2","v":"5年次/5th year"},{"$f":"IF('Form13-2(Memo)'!F8=\"\", \"\", 'Form13-2(Memo)'!F8)","v":""}]
[]
[]
["分　野　別　総　合　評　価　/ Field-specific general evaluations"]
["分野別総合評価"]
[]
[]
[]
[]
[]
[]
[]
[]
["【全体】メモ・改善点等_Comments, improvement areas, etc.",null,null,null,null,{"$f":"D2","v":0},"累計件数\n(自動集計）",{"$f":"'Form13-3(TOP)'!E26","v":"1年次\n1st year"},{"$f":"'Form13-3(TOP)'!F26","v":"2年次\n2nd year"},{"$f":"'Form13-3(TOP)'!G26","v":"3年次\n3rd year"},{"$f":"'Form13-3(TOP)'!H26","v":"4年次\n4th year"},{"$f":"'Form13-3(TOP)'!I26","v":"5年次\nFinal year"}]
[{"$f":"'Form13-2(Memo)'!B2","v":"1年次/1st year"},{"$f":"IF('Form13-2(Memo)'!B9=\"\", \"\", 'Form13-2(Memo)'!B9)","v":""},null,null,null,"〔雑誌論文〕\n[Research Papers] ",{"$f":"'Form13-3(TOP)'!D27","v":0},{"$f":"'Form13-3(TOP)'!E27","v":0},{"$f":"'Form13-3(TOP)'!F27","v":0},{"$f":"'Form13-3(TOP)'!G27","v":0},{"$f":"'Form13-3(TOP)'!H27","v":0},{"$f":"'Form13-3(TOP)'!I27","v":0}]
[null,null,null,null,null,"〔図　書〕\n[Published Books]",{"$f":"'Form13-3(TOP)'!D28","v":0},{"$f":"'Form13-3(TOP)'!E28","v":0},{"$f":"'Form13-3(TOP)'!F28","v":0},{"$f":"'Form13-3(TOP)'!G28","v":0},{"$f":"'Form13-3(TOP)'!H28","v":0},{"$f":"'Form13-3(TOP)'!I28","v":0}]
[null,null,null,null,null,"〔総説・解説・展望〕\n[Review/Commentary/Perspective] ",{"$f":"'Form13-3(TOP)'!D29","v":0},{"$f":"'Form13-3(TOP)'!E29","v":0},{"$f":"'Form13-3(TOP)'!F29","v":0},{"$f":"'Form13-3(TOP)'!G29","v":0},{"$f":"'Form13-3(TOP)'!H29","v":0},{"$f":"'Form13-3(TOP)'!I29","v":0}]
[{"$f":"'Form13-2(Memo)'!C2","v":"2年次/2nd year"},{"$f":"IF('Form13-2(Memo)'!C9=\"\", \"\", 'Form13-2(Memo)'!C9)","v":""},null,null,null,"〔特許〕[Patent]",{"$f":"'Form13-3(TOP)'!D30","v":0},{"$f":"'Form13-3(TOP)'!E30","v":0},{"$f":"'Form13-3(TOP)'!F30","v":0},{"$f":"'Form13-3(TOP)'!G30","v":0},{"$f":"'Form13-3(TOP)'!H30","v":0},{"$f":"'Form13-3(TOP)'!I30","v":0}]
[null,null,null,null,null,"〔受賞〕[Awards/Prizes] ",{"$f":"'Form13-3(TOP)'!D31","v":0},{"$f":"'Form13-3(TOP)'!E31","v":0},{"$f":"'Form13-3(TOP)'!F31","v":0},{"$f":"'Form13-3(TOP)'!G31","v":0},{"$f":"'Form13-3(TOP)'!H31","v":0},{"$f":"'Form13-3(TOP)'!I31","v":0}]
[null,null,null,null,null,"〔国際会議発表〕\n[Presentations at International Conferences]",{"$f":"'Form13-3(TOP)'!D32","v":0},{"$f":"'Form13-3(TOP)'!E32","v":0},{"$f":"'Form13-3(TOP)'!F32","v":0},{"$f":"'Form13-3(TOP)'!G32","v":0},{"$f":"'Form13-3(TOP)'!H32","v":0},{"$f":"'Form13-3(TOP)'!I32","v":0}]
[{"$f":"'Form13-2(Memo)'!D2","v":"3年次/3rd year"},{"$f":"IF('Form13-2(Memo)'!D9=\"\", \"\", 'Form13-2(Memo)'!D9)","v":""},null,null,null,"〔学会発表〕\n[Presentations at Academic Society Meetings]",{"$f":"'Form13-3(TOP)'!D33","v":0},{"$f":"'Form13-3(TOP)'!E33","v":0},{"$f":"'Form13-3(TOP)'!F33","v":0},{"$f":"'Form13-3(TOP)'!G33","v":0},{"$f":"'Form13-3(TOP)'!H33","v":0},{"$f":"'Form13-3(TOP)'!I33","v":0}]
[null,null,null,null,null,"〔報道〕\n[Press Releases]",{"$f":"'Form13-3(TOP)'!D34","v":0},{"$f":"'Form13-3(TOP)'!E34","v":0},{"$f":"'Form13-3(TOP)'!F34","v":0},{"$f":"'Form13-3(TOP)'!G34","v":0},{"$f":"'Form13-3(TOP)'!H34","v":0},{"$f":"'Form13-3(TOP)'!I34","v":0}]
[null,null,null,null,null,"〔研究費の獲得状況〕\n[Status of Acquired Research Funds]",{"$f":"'Form13-3(TOP)'!D35","v":0},{"$f":"'Form13-3(TOP)'!E35","v":0},{"$f":"'Form13-3(TOP)'!F35","v":0},{"$f":"'Form13-3(TOP)'!G35","v":0},{"$f":"'Form13-3(TOP)'!H35","v":0},{"$f":"'Form13-3(TOP)'!I35","v":0}]
[{"$f":"'Form13-2(Memo)'!E2","v":"4年次/4th year"},{"$f":"IF('Form13-2(Memo)'!E9=\"\", \"\", 'Form13-2(Memo)'!E9)","v":""},null,null,null,"〔学部外共同研究〕\n[Collaborative Researches outside the Faculty]",{"$f":"'Form13-3(TOP)'!D36","v":0},{"$f":"'Form13-3(TOP)'!E36","v":0},{"$f":"'Form13-3(TOP)'!F36","v":0},{"$f":"'Form13-3(TOP)'!G36","v":0},{"$f":"'Form13-3(TOP)'!H36","v":0},{"$f":"'Form13-3(TOP)'!I36","v":0}]
[null,null,null,null,null,"〔国際共同研究〕\n[International Collaborative Researches]",{"$f":"'Form13-3(TOP)'!D37","v":0},{"$f":"'Form13-3(TOP)'!E37","v":0},{"$f":"'Form13-3(TOP)'!F37","v":0},{"$f":"'Form13-3(TOP)'!G37","v":0},{"$f":"'Form13-3(TOP)'!H37","v":0},{"$f":"'Form13-3(TOP)'!I37","v":0}]
[null,null,null,null,null,"〔事業化〕\n[Commercialized Products]",{"$f":"'Form13-3(TOP)'!D38","v":0},{"$f":"'Form13-3(TOP)'!E38","v":0},{"$f":"'Form13-3(TOP)'!F38","v":0},{"$f":"'Form13-3(TOP)'!G38","v":0},{"$f":"'Form13-3(TOP)'!H38","v":0},{"$f":"'Form13-3(TOP)'!I38","v":0}]
[{"$f":"'Form13-2(Memo)'!F2","v":"5年次/5th year"},{"$f":"IF('Form13-2(Memo)'!F9=\"\", \"\", 'Form13-2(Memo)'!F9)","v":""},null,null,null,"〔企業からの技術相談〕\n[Technical Consultations to Business Entity]",{"$f":"'Form13-3(TOP)'!D39","v":0},{"$f":"'Form13-3(TOP)'!E39","v":0},{"$f":"'Form13-3(TOP)'!F39","v":0},{"$f":"'Form13-3(TOP)'!G39","v":0},{"$f":"'Form13-3(TOP)'!H39","v":0},{"$f":"'Form13-3(TOP)'!I39","v":0}]
[null,null,null,null,null,"〔留学および、インターンシップ〕\n[Overseas Study and Internships]",{"$f":"'Form13-3(TOP)'!D40","v":0},{"$f":"'Form13-3(TOP)'!E40","v":0},{"$f":"'Form13-3(TOP)'!F40","v":0},{"$f":"'Form13-3(TOP)'!G40","v":0},{"$f":"'Form13-3(TOP)'!H40","v":0},{"$f":"'Form13-3(TOP)'!I40","v":0}]
[null,null,null,null,null,"[研究指導実績]\n[Research Guidance]",{"$f":"'Form13-3(TOP)'!D41","v":0},{"$f":"'Form13-3(TOP)'!E41","v":0},{"$f":"'Form13-3(TOP)'!F41","v":0},{"$f":"'Form13-3(TOP)'!G41","v":0},{"$f":"'Form13-3(TOP)'!H41","v":0},{"$f":"'Form13-3(TOP)'!I41","v":0}]
[null,null,null,null,null,"〔TOEIC, TOEFL等受験状況〕\n[English Proficiency Tests]",{"$f":"'Form13-3(TOP)'!D42","v":0},{"$f":"'Form13-3(TOP)'!E42","v":0},{"$f":"'Form13-3(TOP)'!F42","v":0},{"$f":"'Form13-3(TOP)'!G42","v":0},{"$f":"'Form13-3(TOP)'!H42","v":0},{"$f":"'Form13-3(TOP)'!I42","v":0}]
[null,null,null,null,null,"〔その他・提出物等〕\n[Other]",{"$f":"'Form13-3(TOP)'!D43","v":0},{"$f":"'Form13-3(TOP)'!E43","v":0},{"$f":"'Form13-3(TOP)'!F43","v":0},{"$f":"'Form13-3(TOP)'!G43","v":0},{"$f":"'Form13-3(TOP)'!H43","v":0},{"$f":"'Form13-3(TOP)'!I43","v":0}]
[null,null,null,null,null,null,{"$f":"SUM(G84:G100)","v":0},{"$f":"SUM(H84:H100)","v":0},0,0,0,0]

{"sheet":"Form13-3(TOP)","index":4,"n_rows":44,"n_cols":13,"rows_kept":44,"cut":false,"hidden":false,"merged":[[0,1,0,5],[2,2,2,3],[31,1,31,2],[30,1,30,2],[25,1,25,2],[26,1,26,2],[27,1,27,2],[28,1,28,2],[29,1,29,2],[43,1,43,2],[1,7,1,8],[2,7,2,8],[39,1,39,2],[41,1,41,2],[42,1,42,2],[40,1,40,2],[33,1,33,2],[34,1,34,2],[36,1,36,2],[38,1,38,2],[35,1,35,2],[37,1,37,2],[32,1,32,2],[23,1,23,3],[23,4,23,11]]}
[null,"■リーディング大学院プログラム実績報告書　■\nGlobal Leader Program for Fiber Renaissance_Performance Reports"]
[null,null,null,null,null,null,null,"入学年度/Enrolled in"]
[null,"氏名Name:",{"$f":"IFERROR('Form13-1'!D2,\"\")","v":0},null,null,null,null,"H30年度/FY2018"]
[]
[]
[null,null,null,null,null,null,null,null,null,null,null,null,"1st year"]
[null,null,null,null,null,null,null,null,null,null,null,null,"2nd year"]
[null,null,null,null,null,null,null,null,null,null,null,null,"3rd year"]
[null,null,null,null,null,null,null,null,null,null,null,null,"4th year"]
[null,null,null,null,null,null,null,null,null,null,null,null,"5th year"]
[]
[]
[]
[]
[]
[]
[]
[]
[]
[]
[]
[]
[]
[null,"記載に関する注意事項\n●各ページの各項目は、1行につき1件を記入してください。\n●行の幅は自由に変えてください。\n●ただし、セルの結合はしないこと。\n●集計件数は入力しないこと。",null,null,"Notes\n●Enter one item on each row on each page. \n●Change the row height as desired.\n●However, do not merge cells.\n●Do not enter totals."]
[]
[null,{"$f":"C3","v":0},null,"累計件数(自動集計）\nCumulative total (automatically calculated)","1年次\n1st year","2年次\n2nd year","3年次\n3rd year","4年次\n4th year","5年次\nFinal year"]
[null,"〔雑誌論文〕[Research Papers]  ",null,{"$f":"COUNTA('雑誌論文_Research Paper'!A3:A100)","v":0},{"$f":"COUNTIF('雑誌論文_Research Paper'!A3:A100,\"1st year\")","v":0},{"$f":"COUNTIF('雑誌論文_Research Paper'!A3:A100,\"2nd year\")","v":0},{"$f":"COUNTIF('雑誌論文_Research Paper'!A3:A100,\"3rd year\")","v":0},{"$f":"COUNTIF('雑誌論文_Research Paper'!A3:A100,\"4th year\")","v":0},{"$f":"COUNTIF('雑誌論文_Research Paper'!A3:A100,\"5th year\")","v":0}]
[null,"〔図　書〕[Published Books]",null,{"$f":"COUNTA('図書_Published Book'!A3:A100)","v":0},{"$f":"COUNTIF('図書_Published Book'!A3:A100,\"1st year\")","v":0},{"$f":"COUNTIF('図書_Published Book'!A3:A100,\"2nd year\")","v":0},{"$f":"COUNTIF('図書_Published Book'!A3:A100,\"3rd year\")","v":0},{"$f":"COUNTIF('図書_Published Book'!A3:A100,\"4th year\")","v":0},{"$f":"COUNTIF('図書_Published Book'!A3:A100,\"5th year\")","v":0}]
[null,"〔総説・解説・展望 〕[Review/Commentary/Perspective] ",null,{"$f":"COUNTA(総説・解説・展望_Review・Commentary!A3:A100)","v":0},{"$f":"COUNTIF(総説・解説・展望_Review・Commentary!A3:A100,\"1st year\")","v":0},{"$f":"COUNTIF(総説・解説・展望_Review・Commentary!A3:A100,\"2nd year\")","v":0},{"$f":"COUNTIF(総説・解説・展望_Review・Commentary!A3:A100,\"3rd year\")","v":0},{"$f":"COUNTIF(総説・解説・展望_Review・Commentary!A3:A100,\"4th year\")","v":0},{"$f":"COUNTIF(総説・解説・展望_Review・Commentary!A3:A100,\"5th year\")","v":0}]
[null,"〔特許〕[Patent]",null,{"$f":"COUNTA(特許_Patent!A3:A100)","v":0},{"$f":"COUNTIF(特許_Patent!A3:A100,\"1st year\")","v":0},{"$f":"COUNTIF(特許_Patent!A3:A100,\"2nd year\")","v":0},{"$f":"COUNTIF(特許_Patent!A3:A100,\"3rd year\")","v":0},{"$f":"COUNTIF(特許_Patent!A3:A100,\"4th year\")","v":0},{"$f":"COUNTIF(特許_Patent!A3:A100,\"5th year\")","v":0}]
[null,"〔受賞〕[Awards/Prizes] ",null,{"$f":"COUNTA(受賞_Awards・Prizes!A3:A100)","v":0},{"$f":"COUNTIF(受賞_Awards・Prizes!A3:A100,\"1st year\")","v":0},{"$f":"COUNTIF(受賞_Awards・Prizes!A3:A100,\"2nd year\")","v":0},{"$f":"COUNTIF(受賞_Awards・Prizes!A3:A100,\"3rd year\")","v":0},{"$f":"COUNTIF(受賞_Awards・Prizes!A3:A100,\"4th year\")","v":0},{"$f":"COUNTIF(受賞_Awards・Prizes!A3:A100,\"5th year\")","v":0}]
[null,"〔国際会議発表〕[Presentations at International Conferences]",null,{"$f":"COUNTA(国際会議発表_Presentations1!A3:A99)","v":0},{"$f":"COUNTIF(国際会議発表_Presentations1!A3:A99,\"1st year\")","v":0},{"$f":"COUNTIF(国際会議発表_Presentations1!A3:A99,\"2nd year\")","v":0},{"$f":"COUNTIF(国際会議発表_Presentations1!A3:A99,\"3rd year\")","v":0},{"$f":"COUNTIF(国際会議発表_Presentations1!A3:A99,\"4th year\")","v":0},{"$f":"COUNTIF(国際会議発表_Presentations1!A3:A99,\"5th year\")","v":0}]
[null,"〔学会発表〕[Presentations at Academic Society Meetings]",null,{"$f":"COUNTA(学会発表_Presentations2!A3:A100)","v":0},{"$f":"COUNTIF(学会発表_Presentations2!A3:A100, \"1st year\")","v":0},{"$f":"COUNTIF(学会発表_Presentations2!A3:A100, \"2nd year\")","v":0},{"$f":"COUNTIF(学会発表_Presentations2!A3:A100, \"3rd year\")","v":0},{"$f":"COUNTIF(学会発表_Presentations2!A3:A100, \"4th year\")","v":0},{"$f":"COUNTIF(学会発表_Presentations2!A3:A100, \"5th year\")","v":0}]
[null,"〔報道〕[Press Releases]",null,{"$f":"COUNTA('報道_Press Releases'!A3:A100)","v":0},{"$f":"COUNTIF('報道_Press Releases'!A3:A100,\"1st year\")","v":0},{"$f":"COUNTIF('報道_Press Releases'!A3:A100,\"2nd year\")","v":0},{"$f":"COUNTIF('報道_Press Releases'!A3:A100,\"3rd year\")","v":0},{"$f":"COUNTIF('報道_Press Releases'!A3:A100,\"4th year\")","v":0},{"$f":"COUNTIF('報道_Press Releases'!A3:A100,\"5th year\")","v":0}]
[null,"〔研究費の獲得状況〕[Status of Acquired Research Funds]",null,{"$f":"COUNTA('研究費の獲得_Status of Research Funds'!A3:A100)","v":0},{"$f":"COUNTIF('研究費の獲得_Status of Research Funds'!A3:A100,\"1st year\")","v":0},{"$f":"COUNTIF('研究費の獲得_Status of Research Funds'!A3:A100,\"2nd year\")","v":0},{"$f":"COUNTIF('研究費の獲得_Status of Research Funds'!A3:A100,\"3rd year\")","v":0},{"$f":"COUNTIF('研究費の獲得_Status of Research Funds'!A3:A100,\"4th year\")","v":0},{"$f":"COUNTIF('研究費の獲得_Status of Research Funds'!A3:A100,\"5th year\")","v":0}]
[null,"〔学部外共同研究〕[Collaborative Researches outside the Faculty]",null,{"$f":"COUNTA('学部外共同研究_Collaborative Research1'!A3:A100)","v":0},{"$f":"COUNTIF('学部外共同研究_Collaborative Research1'!A3:A100,\"1st year\")","v":0},{"$f":"COUNTIF('学部外共同研究_Collaborative Research1'!A3:A100,\"2nd year\")","v":0},{"$f":"COUNTIF('学部外共同研究_Collaborative Research1'!A3:A100,\"3rd year\")","v":0},{"$f":"COUNTIF('学部外共同研究_Collaborative Research1'!A3:A100,\"4th year\")","v":0},{"$f":"COUNTIF('学部外共同研究_Collaborative Research1'!A3:A100,\"5th year\")","v":0}]
[null,"〔国際共同研究〕[International Collaborative Researches]",null,{"$f":"COUNTA('国際共同研究_Collaborative Research 2'!A3:A100)","v":0},{"$f":"COUNTIF('国際共同研究_Collaborative Research 2'!A3:A100,\"1st year\")","v":0},{"$f":"COUNTIF('国際共同研究_Collaborative Research 2'!A3:A100,\"2nd year\")","v":0},{"$f":"COUNTIF('国際共同研究_Collaborative Research 2'!A3:A100,\"3rd year\")","v":0},{"$f":"COUNTIF('国際共同研究_Collaborative Research 2'!A3:A100,\"4th year\")","v":0},{"$f":"COUNTIF('国際共同研究_Collaborative Research 2'!A3:A100,\"5th year\")","v":0}]
[null,"〔事業化〕[Commercialized Products]",null,{"$f":"COUNTA('事業化_Commercialized Products'!A3:A100)","v":0},{"$f":"COUNTIF('事業化_Commercialized Products'!A3:A100,\"1st year\")","v":0},{"$f":"COUNTIF('事業化_Commercialized Products'!A3:A100,\"2nd year\")","v":0},{"$f":"COUNTIF('事業化_Commercialized Products'!A3:A100,\"3rd year\")","v":0},{"$f":"COUNTIF('事業化_Commercialized Products'!A3:A100,\"4th year\")","v":0},{"$f":"COUNTIF('事業化_Commercialized Products'!A3:A100,\"5th year\")","v":0}]
[null,"〔企業からの技術相談〕[Technical Consultations to Business Entity]",null,{"$f":"COUNTA('企業からの技術相談_Technical Consult'!A3:A100)","v":0},{"$f":"COUNTIF('企業からの技術相談_Technical Consult'!A3:A100,\"1st year\")","v":0},{"$f":"COUNTIF('企業からの技術相談_Technical Consult'!A3:A100,\"2nd year\")","v":0},{"$f":"COUNTIF('企業からの技術相談_Technical Consult'!A3:A100,\"3rd year\")","v":0},{"$f":"COUNTIF('企業からの技術相談_Technical Consult'!A3:A100,\"4th year\")","v":0},{"$f":"COUNTIF('企業からの技術相談_Technical Consult'!A3:A100,\"5th year\")","v":0}]
[null,"〔留学および、インターンシップ〕[Overseas Study and Internships]",null,{"$f":"COUNTA('留学・インターンシップ_Overseas Study'!A3:A100)","v":0},{"$f":"COUNTIF('留学・インターンシップ_Overseas Study'!A3:A100,\"1st year\")","v":0},{"$f":"COUNTIF('留学・インターンシップ_Overseas Study'!A3:A100,\"2nd year\")","v":0},{"$f":"COUNTIF('留学・インターンシップ_Overseas Study'!A3:A100,\"3rd year\")","v":0},{"$f":"COUNTIF('留学・インターンシップ_Overseas Study'!A3:A100,\"4th year\")","v":0},{"$f":"COUNTIF('留学・インターンシップ_Overseas Study'!A3:A100,\"5th year\")","v":0}]
[null,"〔研究指導実績〕[Research Guidance]",null,{"$f":"COUNTA('研究指導実績_Direction Researches'!A3:A100)","v":0},{"$f":"COUNTIF('研究指導実績_Direction Researches'!A3:A100,\"1st year\")","v":0},{"$f":"COUNTIF('研究指導実績_Direction Researches'!A3:A100,\"2nd year\")","v":0},{"$f":"COUNTIF('研究指導実績_Direction Researches'!A3:A100,\"3rd year\")","v":0},{"$f":"COUNTIF('研究指導実績_Direction Researches'!A3:A100,\"4th year\")","v":0},{"$f":"COUNTIF('研究指導実績_Direction Researches'!A3:A100,\"5th year\")","v":0}]
[null,"〔TOEIC, TOEFL等受験状況〕[English Proficiency Tests]",null,{"$f":"COUNTA('英語能力 English Proficiency'!A3:A100)","v":0},{"$f":"COUNTIF('英語能力 English Proficiency'!A3:A100,\"1st year\")","v":0},{"$f":"COUNTIF('英語能力 English Proficiency'!A3:A100,\"2nd year\")","v":0},{"$f":"COUNTIF('英語能力 English Proficiency'!A3:A100,\"3rd year\")","v":0},{"$f":"COUNTIF('英語能力 English Proficiency'!A3:A100,\"4th year\")","v":0},{"$f":"COUNTIF('英語能力 English Proficiency'!A3:A100,\"5th year\")","v":0}]
[null,"〔その他・提出物等〕[Other]",null,{"$f":"COUNTA(その他_Other!A3:A100)","v":0},{"$f":"COUNTIF(その他_Other!A3:A100,\"1st year\")","v":0},{"$f":"COUNTIF(その他_Other!A3:A100,\"2nd year\")","v":0},{"$f":"COUNTIF(その他_Other!A3:A100,\"3rd year\")","v":0},{"$f":"COUNTIF(その他_Other!A3:A100,\"4th year\")","v":0},{"$f":"COUNTIF(その他_Other!A3:A100,\"5th year\")","v":0}]
[null,"〔印刷〕[Print]"]

{"sheet":"Form13-3(Print)","index":5,"n_rows":0,"n_cols":0,"rows_kept":0,"cut":false,"hidden":false,"merged":[]}

{"sheet":"雑誌論文_Research Paper","index":6,"n_rows":2,"n_cols":11,"rows_kept":2,"cut":false,"hidden":false,"merged":[[0,2,0,10]]}
[null,"〔雑誌論文〕[Research Papers] ","(受理済み論文を含む。投稿中、投稿準備中は除く。) 論文の別刷りのPDF(コピー)を提出して下さい。\n(Include research papers that have already been accepted. Do not include papers being submitted or being prepared for submission.)"]
["学年/ \nYear of study","著　者　名 (全員）  [ All Authors]","論　　文　　名  [Title of Paper]","雑　　　誌　　　名　　[Name of Journal]","巻・号 Volume no.","ページ\nPage(s)","発行年\nYear of publication","査読\nPeer-reviewed","First Author","国際誌\nInternational Journal","IF"]

{"sheet":"図書_Published Book","index":7,"n_rows":2,"n_cols":6,"rows_kept":2,"cut":false,"hidden":false,"merged":[]}
[null,"〔図　書〕[Published Books] ※コピーを添付してください。*Please attach a copy."]
["学年/ \nYear of study","著　者　名 （全員）  [ All Authors]","出　　　版　　　者    [Publisher]","書　　　　　　名   [Title of Book]","発 行 年\nYear of publication","ページ\nPage(s)"]

{"sheet":"総説・解説・展望_Review・Commentary","index":8,"n_rows":2,"n_cols":6,"rows_kept":2,"cut":false,"hidden":false,"merged":[]}
[null,"〔総説・解説・展望 〕 [Review/Commentary/Perspective] ","※コピーを添付してください。*Please attach a copy."]
["学年/ \nYear of study","著　者　名 （全員）  [ All Authors]","出　　　版　　　者    [Publisher]","書　　　　　　名  [Title of Book]","発 行 年\nYear of publication","ページ\nPage(s)"]

{"sheet":"特許_Patent","index":9,"n_rows":2,"n_cols":5,"rows_kept":2,"cut":false,"hidden":false,"merged":[]}
[null,"〔特許〕[Patent]"]
["学年/ \nYear of study","発明者\nName of Inventor (Patentee)","発明の名称\nName of invention","特許番号\nPatent no.","出願年月日\nDate of Application\n(YYYY/MM/DD)"]

{"sheet":"受賞_Awards・Prizes","index":10,"n_rows":2,"n_cols":7,"rows_kept":2,"cut":false,"hidden":false,"merged":[]}
[null,"〔受賞〕[Awards/Prizes]  ","※ 受賞した賞がわかるもののコピーを添付してください。(Please attach a copy of a winning award/prize.)"]
["学年/Year","受賞者名\nName of award recipient","学会名\nName of Society","賞の種類\nKind of Award","賞の名称\nName of Award","題名\nTitle","年月日\nDate\n(yyyy/mm/dd)"]

{"sheet":"国際会議発表_Presentations1","index":11,"n_rows":2,"n_cols":9,"rows_kept":2,"cut":false,"hidden":false,"merged":[[0,2,0,8]]}
[null,"〔国際会議発表〕\n[Presentations at International Conferences]","※予稿集のコピーを提出してください。\n*A copy of the abstract or proceeding must accompany the report."]
["学年/ \nYear of study","発　表　者　[Presenter]","発　　表　　題　　目　　\n[Presentation Title]","会　議　名　称\nName of Conference","開催場所\nVenue","開催年月日\nDate (YYYY/MM/DD)","発表区分\nType of Presentation","招待\nInvitation","査読\nPeer-reviewed"]

{"sheet":"学会発表_Presentations2","index":12,"n_rows":2,"n_cols":10,"rows_kept":2,"cut":false,"hidden":false,"merged":[]}
[null,"〔学会発表〕[Presentations at Academic Society Meetings]"]
["学年/ \nYear of study","発　表　者　[Presenter]","発　　表　　題　　目　　\n[Presentation Title]","会　議　名　称\nName of Conference","開催場所\nVenue","開催年月日\nDate (YYYY/MM/DD)","大会区分\nType of  Meeting","発表区分\nType of Presentation","招待\nInvitation","査読\nPeer-reviewed"]

{"sheet":"報道_Press Releases","index":13,"n_rows":2,"n_cols":5,"rows_kept":2,"cut":false,"hidden":false,"merged":[]}
[null,"〔報道〕\n[Press Releases] "," ※掲載記事のコピーを提出して下さい。(Please submit a copy of published article.)"]
["学年/ \nYear of study","年月日\nReleased Date\n(YYYY/MM/DD)","報道媒体\nName of Press","発行所\nPublisher","タイトル（内容）\nPublished Title (Content)"]

{"sheet":"研究費の獲得_Status of Research Funds","index":14,"n_rows":2,"n_cols":6,"rows_kept":2,"cut":false,"hidden":false,"merged":[[0,2,0,5],[0,0,0,1]]}
["〔研究費の獲得状況〕\n[Status of Acquired Research Funds] ",null," ※科研費、その他補助金、受託、企業等との共同研究、研究助成等\n *Grant-in-Aid for Scientific Research, other national government grants, fiduciary funds, joint research, subsidies, etc."]
["学年/ \nYear of study","研究者名\nResearchers' names","研究費の名称\nName of research fund","期間\nTime period","研究課題等\nResearch topic","研究経費（単位千円）Cost of research (in thousands of yen)"]

{"sheet":"学部外共同研究_Collaborative Research1","index":15,"n_rows":40,"n_cols":7,"rows_kept":40,"cut":false,"hidden":false,"merged":[]}
[null,"〔学部外共同研究〕[Collaborative Researches outside the Faculty]"]
["学年/ \nYear of study","機関名\nName of institution","共同研究者名\nNames of collaborators","研究内容\nResearch content"]
[]
[]
[]
[]
[]
[]
[]
[]
[]
[]
[]
[]
[]
[]
[]
[]
[]
[]
[]
[]
[]
[]
[]
[]
[]
[]
[]
[]
[]
[]
[]
[]
[]
[]
[]
[]
[]
[null,null,null,null,null,null," "]

{"sheet":"国際共同研究_Collaborative Research 2","index":16,"n_rows":40,"n_cols":7,"rows_kept":40,"cut":false,"hidden":false,"merged":[]}
[null,"〔国際共同研究〕[International Collaborative Researches]"]
["学年/ \nYear of study","機関名\nName of institution","共同研究者名\nNames of collaborators","研究内容\nResearch content"]
[]
[]
[]
[]
[]
[]
[]
[]
[]
[]
[]
[]
[]
[]
[]
[]
[]
[]
[]
[]
[]
[]
[]
[]
[]
[]
[]
[]
[]
[]
[]
[]
[]
[]
[]
[]
[]
[null,null,null,null,null,null," "]

{"sheet":"事業化_Commercialized Products","index":17,"n_rows":40,"n_cols":7,"rows_kept":40,"cut":false,"hidden":false,"merged":[]}
[null,"〔事業化〕[Commercialized Products]"]
["学年/ \nYear of study","研究者名\nNames of researchers","品名\nProduct name","企業名\nName of business entity"]
[]
[]
[]
[]
[]
[]
[]
[]
[]
[]
[]
[]
[]
[]
[]
[]
[]
[]
[]
[]
[]
[]
[]
[]
[]
[]
[]
[]
[]
[]
[]
[]
[]
[]
[]
[]
[]
[null,null,null,null,null,null," "]

{"sheet":"企業からの技術相談_Technical Consult","index":18,"n_rows":40,"n_cols":7,"rows_kept":40,"cut":false,"hidden":false,"merged":[]}
[null,"〔企業からの技術相談〕\n[Technical Consultations to Business Entity]","(差し支えない程度で) (Provide as much information as permissible.)"]
["学年/ \nYear of study","企業名\nName of business entity","内容\nNature of consultation"]
[]
[]
[]
[]
[]
[]
[]
[]
[]
[]
[]
[]
[]
[]
[]
[]
[]
[]
[]
[]
[]
[]
[]
[]
[]
[]
[]
[]
[]
[]
[]
[]
[]
[]
[]
[]
[]
[null,null,null,null,null,null," "]

{"sheet":"留学・インターンシップ_Overseas Study","index":19,"n_rows":16,"n_cols":7,"rows_kept":16,"cut":false,"hidden":false,"merged":[]}
[null,"〔留学および、インターンシップ〕[Overseas Study and Internships]"]
["学年/ \nYear of study","大学名または、企業名\nUniversity or business entity name","実施内容・研究内容\nDetails","受け入れ期間\nPeriod of study/internship","経費\nFinancially supported by","研究テーマ\nResearch topic"]
[]
[]
[]
[]
[]
[]
[]
[]
[]
[]
[]
[]
[]
[null,null,null,null,null,null," "]

{"sheet":"研究指導実績_Direction Researches","index":20,"n_rows":40,"n_cols":7,"rows_kept":40,"cut":false,"hidden":false,"merged":[]}
[null,"研究指導実績[Directing Researches]"]
["学年/ \nYear of study","研究指導実績（修士、卒業研究等）　※箇条書きでご記入下さい。\nDirecting Researches (e.g. to master’s students, on graduation researches and such)   *Please itemize list."]
[]
[]
[]
[]
[]
[]
[]
[]
[]
[]
[]
[]
[]
[]
[]
[]
[]
[]
[]
[]
[]
[]
[]
[]
[]
[]
[]
[]
[]
[]
[]
[]
[]
[]
[]
[]
[]
[null,null,null,null,null,null," "]

{"sheet":"その他_Other","index":21,"n_rows":40,"n_cols":8,"rows_kept":40,"cut":false,"hidden":false,"merged":[]}
[null,"〔その他〕[Other]"]
["学年/Year","種類/Kind","※データベース、その他著作物、提出物等、特記事項等を自由にご記入ください。\n*Enter information about databases, other copyrighted works, special notes, etc."]
[]
[]
[]
[]
[]
[]
[]
[]
[]
[]
[]
[]
[]
[]
[]
[]
[]
[]
[]
[]
[]
[]
[]
[]
[]
[]
[]
[]
[]
[]
[]
[]
[]
[]
[]
[]
[]
[null,null,null,null,null,null,null," "]

{"sheet":"英語能力 English Proficiency","index":22,"n_rows":39,"n_cols":7,"rows_kept":39,"cut":false,"hidden":false,"merged":[[1,3,1,4]]}
[null,"英語能力検定試験受験状況[ English Proficiency Test ]",null,"※必ず公式スコア票のコピーを添付して下さい。 (MUST attach a copy of official score sheet.)"]
["学年/ \nYear of study","受験した試験名\nName of test taken","受験日\nDate of test (YYYY/MM/DD)","スコア\nSCORE"]
[]
[]
[]
[]
[]
[]
[]
[]
[]
[]
[]
[]
[]
[]
[]
[]
[]
[]
[]
[]
[]
[]
[]
[]
[]
[]
[]
[]
[]
[]
[]
[]
[]
[]
[]
[]
[null,null,null,null,null,null," "]